Workbook

Sheet меню пришкольные
A1: Примерное меню питания для детей в период отдыха и оздоровления
A2: ( пришкольные лагеря) на 2024г
B5: № НТД | C5: Наименование блюд | D5: Выход, г | E5: Белки, г | F5: Жиры, г | G5: Углеводы, г | H5: Энерг. ценнность, ккал | I5: Витамин B1, мг | J5: Витамин С, мг | K5: Витамин А, мг | L5: Витамин Е, мг | M5: Ca, мг | N5: P, мг | O5: Mg, мг | P5: Fe, мг
C6: 1 день
C7: Завтрак
B8: 470/21 | C8: Йогурт 2,5% | D8: 200 | E8: 5.8 | F8: 5 | G8: 8 | H8: 101 | I8: 0.08 | J8: 1.4 | K8: 40.1 | L8: 0 | M8: 240.8 | N8: 180.6 | O8: 28.1 | P8: 0.2
B9: 181 | C9: Каша молочная манная (жидкая) с маслом | D9: 200/5 | E9: 6.19 | F9: 6.57 | G9: 32.99 | H9: 215.91 | I9: 0.09 | J9: 2.35 | K9: 1.37 | L9: 0.57 | M9: 135.18 | N9: 122.94 | O9: 20.42 | P9: 0.43
B10: 457/21 | C10: Чай с сахаром | D10: 200 | E10: 0.2 | F10: 0.1 | G10: 9.3 | H10: 38 | I10: 0 | J10: 0 | K10: 0 | L10: 0 | M10: 5.1 | N10: 7.7 | O10: 4.2 | P10: 0.82
B11: 576/21 | C11: Батон | D11: 30 | E11: 2.3 | F11: 0.9 | G11: 15.4 | H11: 78.6 | I11: 0 | J11: 0 | K11: 0 | L11: 0 | M11: 5.7 | N11: 19.5 | O11: 3.9 | P11: 0.3
E12: =SUM(E8:E11) -> 14.49 | F12: 12.57 | G12: 65.69 | H12: 433.51 | I12: 0.17 | J12: 3.75 | K12: 41.47 | L12: 0.57 | M12: 386.78 | N12: 330.74 | O12: 56.62 | P12: 1.75
C13: 2 Завтрак
B14: 442 | C14: Сок | D14: 200 | E14: 1 | F14: 0.2 | G14: 20.2 | H14: 86 | I14: 0 | J14: 4 | K14: 0 | L14: 0 | M14: 14 | N14: 14 | O14: 8 | P14: 2.8
E15: =SUM(E14) -> 1 | F15: =SUM(F14) -> 0.2 | G15: 20.2 | H15: 86 | I15: 0 | J15: 4 | K15: 0 | L15: 0 | M15: 14 | N15: 14 | O15: 8 | P15: 2.8
C16: Обед
B17: 45/17 | C17: Салат из белокочанной капусты | D17: 60 | E17: 0.78 | F17: 1.94 | G17: 3.87 | H17: 36 | I17: 0.013 | J17: 6.25 | K17: 0 | L17: 0.06 | M17: 16.98 | N17: 46.98 | O17: 6.05 | P17: 0.27
B18: 101 | C18: Суп картофельный с гречневой крупой на кб | D18: 250 | E18: 6.37 | F18: 13.71 | G18: 10.52 | H18: 225.95 | I18: 0.03 | J18: 6.91 | K18: 1.14 | L18: 0.31 | M18: 14.16 | N18: 110.15 | O18: 43.05 | P18: 1.03
B19: 312 | C19: Пюре картофельное с маслом | D19: 180/5 | E19: 3.71 | F19: 9.94 | G19: 26.4 | H19: 206.4 | I19: 0.2 | J19: 9.53 | K19: 0.1 | L19: 0.4 | M19: 57.37 | N19: 101.7 | O19: 9.6 | P19: 1.4
B20: 347/21 | C20: Котлеты Школьные с соусом | D20: 75/25 | E20: 15.3 | F20: 11 | G20: 13.3 | H20: 213 | I20: 0.14 | J20: 0 | K20: 30 | L20: 1.4 | M20: 50 | N20: 136 | O20: 21 | P20: 2.07
B21: 494/21 | C21: Компот из изюма | D21: 200 | E21: 0.3 | F21: 0.01 | G21: 17.5 | H21: 72 | I21: 0 | J21: 0.1 | K21: 0 | L21: 0.1 | M21: 16.4 | N21: 10.7 | O21: 4.3 | P21: 0.9
B22: 573/21 | C22: Хлеб Пшеничный | D22: 30 | E22: 2.3 | F22: 0.24 | G22: 14.8 | H22: 70.8 | I22: 0 | J22: 0 | K22: 0 | L22: 0 | M22: 5.7 | N22: 19.5 | O22: 3.9 | P22: 0.3
B23: 574/21 | C23: Хлеб Ржаной (ржано-пшеничный) | D23: 30 | E23: 1.98 | F23: 0.36 | G23: 10.02 | H23: 51.3 | I23: 0.06 | J23: 0 | K23: 0 | L23: 0.33 | M23: 10.5 | N23: 48 | O23: 13.5 | P23: 1.2
B24: 338 | C24: Плоды и ягоды свежие | D24: 150 | E24: 0.6 | F24: 0.6 | G24: 11.2 | H24: 70.5 | I24: 0.45 | J24: 12 | K24: 0 | L24: 1.3 | M24: 24 | N24: 22 | O24: 15.98 | P24: 0.045
B25: день защиты детей | C25: Шоколад молочный | D25: 90 | E25: 9.8 | F25: 34.7 | G25: 50.4 | H25: 554 | I25: 8 | J25: 0 | K25: 22 | L25: 0.8 | M25: 352 | N25: 309 | O25: 68 | P25: 1.5
E26: =SUM(E17:E25) -> 41.14 | F26: =SUM(F17:F25) -> 72.50 | G26: =SUM(G17:G25) -> 158.01 | H26: =SUM(H17:H25) -> 1499.95 | I26: =SUM(I17:I25) -> 8.89 | J26: =SUM(J17:J25) -> 34.79 | K26: =SUM(K17:K25) -> 53.24 | L26: =SUM(L17:L25) -> 4.70 | M26: =SUM(M17:M25) -> 547.11 | N26: =SUM(N17:N25) -> 804.03 | O26: =SUM(O17:O25) -> 185.38 | P26: =SUM(P17:P25) -> 8.72
C27: Итого за день | E27: =E12+E14+E26 -> 56.63 | F27: =F12+F14+F26 -> 85.27 | G27: =G12+G14+G26 -> 243.9 | H27: =H12+H14+H26 -> 2019.46 | I27: 1.283 | J27: 44.465 | K27: 46.731 | L27: 4.35 | M27: 570.6 | N27: 856.39 | O27: 208.32 | P27: 11.17
C28: 2 день
B29: 203 | C29: Запеканка рисовая с творогом с повидлом | D29: 180/20 | E29: 18.76 | F29: 19.24 | G29: 36.45 | H29: 365 | I29: 0.08 | J29: 0.11 | K29: 0 | L29: 2.1 | M29: 102 | N29: 209.4 | O29: 43.8 | P29: 1.68
B30: 576/21 | C30: Батон | D30: 30 | E30: 2.3 | F30: 0.9 | G30: 15.4 | H30: 78.6 | I30: 0 | J30: 0 | K30: 0 | L30: 0 | M30: 5.7 | N30: 19.5 | O30: 3.9 | P30: 0.3
B31: 457/21 | C31: Чай с сахаром | D31: 200 | E31: 0.2 | F31: 0.1 | G31: 9.3 | H31: 38 | I31: 0 | J31: 0 | K31: 0 | L31: 0 | M31: 5.1 | N31: 7.7 | O31: 4.2 | P31: 0.82
B32: 338 | C32: Плоды и ягоды свежие | D32: 150 | E32: 0.6 | F32: 0.6 | G32: 11.2 | H32: 70.5 | I32: 0.45 | J32: 12 | K32: 0 | L32: 1.3 | M32: 24 | N32: 22 | O32: 15.98 | P32: 0.045
E33: =SUM(E29:E32) -> 21.86 | F33: =SUM(F29:F32) -> 20.84 | G33: =SUM(G29:G32) -> 72.35 | H33: =SUM(H29:H32) -> 552.1 | I33: 0.14 | J33: 40.01 | K33: 0.1 | L33: 3.15 | M33: 149.8 | N33: 285.15 | O33: 88.1 | P33: 11.976
C34: 2 Завтрак
B35: 442 | C35: Сок | D35: 200 | E35: 1 | F35: 0.2 | G35: 20.2 | H35: 86 | I35: 0 | J35: 4 | K35: 0 | L35: 0 | M35: 14 | N35: 14 | O35: 8 | P35: 2.8
E36: =SUM(E35) -> 1 | F36: =SUM(F35) -> 0.2 | G36: 20.2 | H36: 86 | I36: 0 | J36: 4 | K36: 0 | L36: 0 | M36: 14 | N36: 14 | O36: 8 | P36: 2.8
C37: Обед
B38: 71 | C38: Помидор свежий порционно | D38: 60 | E38: 0.42 | F38: 0.06 | G38: 1.14 | H38: 6.78 | I38: 0.020 | J38: 2.940 | K38: 0.000 | L38: 0.000 | M38: 10.200 | N38: 18.000 | O38: 8.400 | P38: 0.300
B39: 148/04 | C39: Суп-лапша домашняя с цыплятами отварными | D39: 250/25 | E39: 7.88 | F39: 12.08 | G39: 10.91 | H39: 183.79 | I39: 0.09 | J39: 3.23 | K39: 0.7 | L39: 0.28 | M39: 105.94 | N39: 130.51 | O39: 10.04 | P39: 1.09
B40: 290 | C40: Птица тушеная в соусе | D40: 50/50 | E40: 12.28 | F40: 11.52 | G40: 3.51 | H40: 167 | I40: 0.04 | J40: 2.02 | K40: 56.1 | L40: 1.11 | M40: 42.27 | N40: 100.6 | O40: 15.1 | P40: 1.24
B41: 171/17 | C41: Каша гречневая рассыпчатая с маслом | D41: 180/5 | E41: 10.1 | F41: 7.5 | G41: 45.9 | H41: 291 | I41: 0.3 | J41: 0 | K41: 0 | L41: 5.6 | M41: 27 | N41: 224.2 | O41: 150.7 | P41: 5.3
B42: 349 | C42: Компот из смеси сухофруктов | D42: 200 | E42: 0.5 | F42: 0.02 | G42: 19.43 | H42: 79.92 | I42: 0 | J42: 0.03 | K42: 0.75 | L42: 0 | M42: 17.25 | N42: 28.8 | O42: 13.8 | P42: 1.95
B43: 573/21 | C43: Хлеб Пшеничный | D43: 30 | E43: 2.3 | F43: 0.24 | G43: 14.8 | H43: 70.8 | I43: 0 | J43: 0 | K43: 0 | L43: 0 | M43: 5.7 | N43: 19.5 | O43: 3.9 | P43: 0.3
B44: 574/21 | C44: Хлеб Ржаной (ржано-пшеничный) | D44: 30 | E44: 1.98 | F44: 0.36 | G44: 10.02 | H44: 51.3 | I44: 0.06 | J44: 0 | K44: 0 | L44: 0.33 | M44: 10.5 | N44: 48 | O44: 13.5 | P44: 1.2
E45: =SUM(E38:E44) -> 35.46 | F45: =SUM(F38:F44) -> 31.78 | G45: =SUM(G38:G44) -> 105.71 | H45: =SUM(H38:H44) -> 850.59 | I45: 0.48 | J45: 12.12 | K45: 4.78 | L45: 6.38 | M45: 359.64 | N45: 475.21 | O45: 227.12 | P45: 1.2
C46: Итого за день | E46: =E33+E35+E45 -> 58.32 | F46: =F33+F35+F45 -> 52.82 | G46: =G33+G35+G45 -> 198.26 | H46: =H33+H35+H45 -> 1488.69 | I46: 0.62 | J46: 56.13 | K46: 4.88 | L46: 9.53 | M46: 523.44 | N46: 774.36 | O46: 323.22 | P46: 15.976
C47: 3 день
B48: 338 | C48: Плоды и ягоды свежие | D48: 150 | E48: 0.6 | F48: 0.6 | G48: 11.2 | H48: 70.5 | I48: 0.45 | J48: 12 | K48: 0 | L48: 1.3 | M48: 24 | N48: 22 | O48: 15.98 | P48: 0.045
B49: 174/17 | C49: Каша рисовая молочная вязкая с маслом | D49: 200/5 | E49: 5.7 | F49: 8.01 | G49: 38.4 | H49: 249.6 | I49: 0.05 | J49: 1.3 | K49: 0.05 | L49: 0.91 | M49: 122.9 | N49: 150 | O49: 34.9 | P49: 1.3
B50: 15/17 | C50: Сыр порциями | D50: 15 | E50: 4.42 | F50: 4.16 | G50: 0 | H50: 55.11 | I50: 0 | J50: 0 | K50: 0.12 | L50: 0.07 | M50: 165 | N50: 99 | O50: 9.08 | P50: 0.12
B51: 377/17 | C51: Чай с лимоном | D51: 200/10/7 | E51: 0.27 | F51: 0.06 | G51: 15.23 | H51: 63 | I51: 0.003 | J51: 2.8 | K51: 0 | L51: 0.014 | M51: 3.25 | N51: 1.54 | O51: 0.84 | P51: 0.087
B52: 576/21 | C52: Батон | D52: 30 | E52: 2.3 | F52: 0.9 | G52: 15.4 | H52: 78.6 | I52: 0 | J52: 0 | K52: 0 | L52: 0 | M52: 5.7 | N52: 19.5 | O52: 3.9 | P52: 0.3
E53: =SUM(E48:E52) -> 13.29 | F53: =SUM(F48:F52) -> 13.73 | G53: =SUM(G48:G52) -> 80.23 | H53: =SUM(H48:H52) -> 516.81 | I53: 0.053 | J53: 17.43 | K53: 0.17 | L53: 1.924 | M53: 347.52 | N53: 312.71 | O53: 80.72 | P53: 7.107
C54: 2 Завтрак
B55: 442 | C55: Сок | D55: 200 | E55: 1 | F55: 0.2 | G55: 20.2 | H55: 86 | I55: 0 | J55: 4 | K55: 0 | L55: 0 | M55: 14 | N55: 14 | O55: 8 | P55: 2.8
E56: =SUM(E55) -> 1 | F56: =SUM(F55) -> 0.2 | G56: 20.2 | H56: 86 | I56: 0 | J56: 4 | K56: 0 | L56: 0 | M56: 14 | N56: 14 | O56: 8 | P56: 2.8
C57: Обед
B58: 71 | C58: Огурец свежий порционно | D58: 60 | E58: 0.42 | F58: 0.06 | G58: 1.14 | H58: 6.78 | I58: 0.020 | J58: 2.940 | K58: 0.000 | L58: 0.000 | M58: 10.200 | N58: 18.000 | O58: 8.400 | P58: 0.300
B59: 82/17 | C59: Борщ с мясными фрикадельками со сметаной | D59: 230/20/5 | E59: 7.53 | F59: 9.72 | G59: 14 | H59: 174.6 | I59: 0.1 | J59: 10.56 | K59: 0.31 | L59: 2.1 | M59: 47.9 | N59: 101.6 | O59: 34.3 | P59: 2.1
B60: 202/17 | C60: Макаронные изделия отварные с маслом | D60: 180/5 | E60: 8.5 | F60: 5.9 | G60: 54.7 | H60: 305.9 | I60: 0.1 | J60: 0 | K60: 0 | L60: 1.8 | M60: 14.3 | N60: 63.5 | O60: 11.5 | P60: 1.4
B61: 295 | C61: Котлеты куриные с соусом | D61: 70/30 | E61: 12.13 | F61: 17.4 | G61: 9.86 | H61: 245 | I61: 0.08 | J61: 1.25 | K61: 0.042 | L61: 0.286 | M61: 11.45 | N61: 153.39 | O61: 22.43 | P61: 1.23
B62: 494/21 | C62: Компот из кураги | D62: 200 | E62: 0.3 | F62: 0.01 | G62: 17.5 | H62: 72 | I62: 0 | J62: 0.1 | K62: 0 | L62: 0.1 | M62: 16.4 | N62: 10.7 | O62: 4.3 | P62: 0.9
B63: 573/21 | C63: Хлеб Пшеничный | D63: 30 | E63: 2.3 | F63: 0.24 | G63: 14.8 | H63: 70.8 | I63: 0 | J63: 0 | K63: 0 | L63: 0 | M63: 5.7 | N63: 19.5 | O63: 3.9 | P63: 0.3
B64: 574/21 | C64: Хлеб Ржаной (ржано-пшеничный) | D64: 30 | E64: 1.98 | F64: 0.36 | G64: 10.02 | H64: 51.3 | I64: 0.06 | J64: 0 | K64: 0 | L64: 0.33 | M64: 10.5 | N64: 48 | O64: 13.5 | P64: 1.2
E65: =SUM(E58:E64) -> 33.16 | F65: =SUM(F58:F64) -> 33.69 | G65: 125.57 | H65: =SUM(H58:H64) -> 926.38 | I65: 0.542 | J65: 30.11 | K65: 0.472 | L65: 4.722 | M65: 251.85 | N65: 508.11 | O65: 124.83 | P65: 7.61
C66: итого за день | E66: =E53+E55+E65 -> 47.45 | F66: =F53+F55+F65 -> 47.62 | G66: =G53+G55+G65 -> 226 | H66: =H53+H55+H65 -> 1529.19 | I66: 0.595 | J66: 51.54 | K66: 0.642 | L66: 6.646 | M66: 613.37 | N66: 834.82 | O66: 213.55 | P66: 17.517
C67: 4 день
B68: 214 | C68: Омлет натуральный с маслом | D68: 180/5 | E68: 13.8 | F68: 27.1 | G68: 3.1 | H68: 310 | I68: 0.1 | J68: 0.2 | K68: 0.3 | L68: 5.6 | M68: 106.1 | N68: 211.9 | O68: 16.8 | P68: 2.3
B69: 377/17 | C69: Чай с лимоном | D69: 200/10/7 | E69: 0.27 | F69: 0.06 | G69: 15.23 | H69: 63 | I69: 0.003 | J69: 2.8 | K69: 0 | L69: 0.014 | M69: 3.25 | N69: 1.54 | O69: 0.84 | P69: 0.087
B70: 576/21 | C70: Батон | D70: 30 | E70: 2.3 | F70: 0.9 | G70: 15.4 | H70: 78.6 | I70: 0 | J70: 0 | K70: 0 | L70: 0 | M70: 5.7 | N70: 19.5 | O70: 3.9 | P70: 0.3
B71: 535/21 | C71: Пирожки печеные с картошкой | D71: 70 | E71: 3.10 | F71: 1.60 | G71: 21.10 | H71: 110.70 | I71: 0.000 | J71: 0.030 | K71: 0.060 | L71: 0.000 | M71: 0.000 | N71: 0.000 | O71: 0.000 | P71: 0.000
E72: =SUM(E68:E71) -> 19.47 | F72: =SUM(F68:F71) -> 29.66 | G72: =SUM(G68:G71) -> 54.83 | H72: =SUM(H68:H71) -> 562.3 | I72: 0.103 | J72: 3.03 | K72: 0.36 | L72: 5.614 | M72: 115.05 | N72: 232.94 | O72: 21.54 | P72: 2.687
C73: 2 Завтрак
B74: 442 | C74: Сок | D74: 200 | E74: 1 | F74: 0.2 | G74: 20.2 | H74: 86 | I74: 0 | J74: 4 | K74: 0 | L74: 0 | M74: 14 | N74: 14 | O74: 8 | P74: 2.8
E75: =SUM(E74) -> 1 | F75: =SUM(F74) -> 0.2 | G75: 20.2 | H75: 86 | I75: 0 | J75: 4 | K75: 0 | L75: 0 | M75: 14 | N75: 14 | O75: 8 | P75: 2.8
C76: Обед
B77: 24 | C77: Салат из свежих помидоров и огурцов | D77: 60 | E77: 0.59 | F77: 3.69 | G77: 2.24 | H77: 44.52 | I77: 0.03 | J77: 10.06 | K77: 0 | L77: 0 | M77: 11.21 | N77: 20.77 | O77: 9.76 | P77: 0.44
B78: 132/04 | C78: Рассольник "Ленинградский" с цыплятами отварными со сметаной | D78: 250/25/10 | E78: 8.11 | F78: 12.25 | G78: 10.23 | H78: 183.61 | I78: 0.05 | J78: 6.13 | K78: 0.31 | L78: 0.28 | M78: 103.36 | N78: 93.03 | O78: 20.7 | P78: 1.09
B79: 280 | C79: Фрикадельки говяжьи в соусе | D79: 50/50 | E79: 8.5 | F79: 11.21 | G79: 10.61 | H79: 180 | I79: 0.04 | J79: 0.27 | K79: 5.29 | L79: 2.67 | M79: 24.45 | N79: 79.59 | O79: 14.19 | P79: 5.29
B80: 312/17 | C80: Пюре картофельное с маслом | D80: 180/5 | E80: 3.71 | F80: 9.94 | G80: 26.4 | H80: 206.4 | I80: 0.2 | J80: 9.53 | K80: 0.1 | L80: 0.4 | M80: 57.37 | N80: 101.7 | O80: 9.6 | P80: 1.4
B81: 349 | C81: Компот из смеси сухофруктов | D81: 200 | E81: 0.5 | F81: 0.02 | G81: 19.43 | H81: 79.92 | I81: 0 | J81: 0.03 | K81: 0.75 | L81: 0 | M81: 17.25 | N81: 28.8 | O81: 13.8 | P81: 1.95
B82: 573/21 | C82: Хлеб Пшеничный | D82: 30 | E82: 2.3 | F82: 0.24 | G82: 14.8 | H82: 70.8 | I82: 0 | J82: 0 | K82: 0 | L82: 0 | M82: 5.7 | N82: 19.5 | O82: 3.9 | P82: 0.3
B83: 574/21 | C83: Хлеб Ржаной (ржано-пшеничный) | D83: 30 | E83: 1.98 | F83: 0.36 | G83: 10.02 | H83: 51.3 | I83: 0.06 | J83: 0 | K83: 0 | L83: 0.33 | M83: 10.5 | N83: 48 | O83: 13.5 | P83: 1.2
B84: 338 | C84: Плоды и ягоды свежие | D84: 150 | E84: 0.6 | F84: 0.6 | G84: 11.2 | H84: 70.5 | I84: 0.45 | J84: 12 | K84: 0 | L84: 1.3 | M84: 24 | N84: 22 | O84: 15.98 | P84: 0.045
E85: =SUM(E77:E84) -> 26.29 | F85: =SUM(F77:F84) -> 38.31 | G85: =SUM(G77:G84) -> 104.93 | H85: =SUM(H77:H84) -> 887.05 | I85: 2.68 | J85: 36.3 | K85: 0.42 | L85: 3.33 | M85: 242.79 | N85: 408.32 | O85: 98.07 | P85: 6.22
C86: итого за день | E86: 45.96 | F86: 70.87 | G86: 180.34 | H86: =H72+H74+H85 -> 1535.35 | I86: 2.783 | J86: 43.33 | K86: 0.78 | L86: 8.944 | M86: 371.84 | N86: 655.26 | O86: 127.61 | P86: 11.707
C87: 5 день
B88: 338 | C88: Плоды и ягоды свежие | D88: 150 | E88: 0.6 | F88: 0.6 | G88: 11.2 | H88: 70.5 | I88: 0.45 | J88: 12 | K88: 0 | L88: 1.3 | M88: 24 | N88: 22 | O88: 15.98 | P88: 0.045
B89: 470/21 | C89: Йогурт 2,5% | D89: 200 | E89: 5.8 | F89: 5 | G89: 8 | H89: 101 | I89: 0.08 | J89: 1.4 | K89: 40.1 | L89: 0 | M89: 240.8 | N89: 180.6 | O89: 28.1 | P89: 0.2
B90: 93 | C90: Каша молочная геркулесовая с маслом | D90: 200/5 | E90: 5.39 | F90: 6.38 | G90: 27.13 | H90: 187 | I90: 0.18 | J90: 0.46 | K90: 0.05 | L90: 0.8 | M90: 123.6 | N90: 188.3 | O90: 60.7 | P90: 1.5
B91: 462/21 | C91: Какао с молоком | D91: 200 | E91: 3.28 | F91: 3.55 | G91: 17.15 | H91: 113.67 | I91: 0.032 | J91: 1 | K91: 0.02 | L91: 0.006 | M91: 121.6 | N91: 106.42 | O91: 15.8 | P91: 0.36
B92: 576/21 | C92: Батон | D92: 30 | E92: 2.3 | F92: 0.9 | G92: 15.4 | H92: 78.6 | I92: 0 | J92: 0 | K92: 0 | L92: 0 | M92: 5.7 | N92: 19.5 | O92: 3.9 | P92: 0.3
E93: =SUM(E88:E92) -> 17.37 | F93: =SUM(F88:F92) -> 16.43 | G93: 78.88 | H93: 550.77 | I93: 0.742 | J93: 14.86 | K93: 40.17 | L93: 2.106 | M93: 515.7 | N93: 516.82 | O93: 124.48 | P93: 2.405
C94: 2 Завтрак
B95: 442 | C95: Сок | D95: 200 | E95: 1 | F95: 0.2 | G95: 20.2 | H95: 86 | I95: 0 | J95: 4 | K95: 0 | L95: 0 | M95: 14 | N95: 14 | O95: 8 | P95: 2.8
E96: =SUM(E95) -> 1 | F96: =SUM(F95) -> 0.2 | G96: 20.2 | H96: 86 | I96: 0 | J96: 4 | K96: 0 | L96: 0 | M96: 14 | N96: 14 | O96: 8 | P96: 2.8
C97: Обед
B98: 71 | C98: Помидор свежий порционно | D98: 60 | E98: 0.42 | F98: 0.06 | G98: 1.14 | H98: 6.78 | I98: 0.020 | J98: 2.940 | K98: 0.000 | L98: 0.000 | M98: 10.200 | N98: 18.000 | O98: 8.400 | P98: 0.300
B99: 111 | C99: Суп с макаронными изделиями с мясными фрикадельками | D99: 230/20 | E99: 6.9 | F99: 8.15 | G99: 11.7 | H99: 148.03 | I99: 0 | J99: 0.73 | K99: 0.21 | L99: 0.63 | M99: 21.5 | N99: 64.3 | O99: 14.22 | P99: 1.15
B100: 265 | C100: Плов из говядины | D100: 50/170 | E100: 24.2 | F100: 24.7 | G100: 38.2 | H100: 472.2 | I100: 0.09 | J100: 1.9 | K100: 0.9 | L100: 0 | M100: 20.9 | N100: 211.8 | O100: 54.2 | P100: 3.85
B101: 349 | C101: Компот из смеси сухофруктов | D101: 200 | E101: 0.5 | F101: 0.02 | G101: 19.43 | H101: 79.92 | I101: 0 | J101: 0.03 | K101: 0.75 | L101: 0 | M101: 17.25 | N101: 28.8 | O101: 13.8 | P101: 1.95
B102: 573/21 | C102: Хлеб Пшеничный | D102: 30 | E102: 2.3 | F102: 0.24 | G102: 14.8 | H102: 70.8 | I102: 0 | J102: 0 | K102: 0 | L102: 0 | M102: 5.7 | N102: 19.5 | O102: 3.9 | P102: 0.3
B103: 574/21 | C103: Хлеб Ржаной (ржано-пшеничный) | D103: 30 | E103: 1.98 | F103: 0.36 | G103: 10.02 | H103: 51.3 | I103: 0.06 | J103: 0 | K103: 0 | L103: 0.33 | M103: 10.5 | N103: 48 | O103: 13.5 | P103: 1.2
E104: =SUM(E98:E103) -> 36.30 | F104: =SUM(F98:F103) -> 33.53 | G104: =SUM(G98:G103) -> 95.29 | H104: =SUM(H98:H103) -> 829.03 | I104: 0.27 | J104: 11.41 | K104: 1.86 | L104: 1.12 | M104: 94.65 | N104: 431.7 | O104: 116.62 | P104: 9.4
C105: Итого за день | E105: =E93+E96+E104 -> 54.67 | F105: =F93+F95+F104 -> 50.16 | G105: =G93+G95+G104 -> 194.37 | H105: =H93+H95+H104 -> 1465.8 | I105: 1.112 | J105: 36.01 | K105: 45.93 | L105: 3.656 | M105: 654.72 | N105: 969.25 | O105: 231.02 | P105: 15.22
C106: 6 день
C107: Завтрак
B108: 338 | C108: Плоды и ягоды свежие | D108: 150 | E108: 0.6 | F108: 0.6 | G108: 11.2 | H108: 70.5 | I108: 0.45 | J108: 12 | K108: 0 | L108: 1.3 | M108: 24 | N108: 22 | O108: 15.98 | P108: 0.045
B109: 181/17 | C109: Каша молочная манная вязкая с маслом | D109: 200/5 | E109: 7.23 | F109: 8.35 | G109: 33.44 | H109: 297.82 | I109: 0.04 | J109: 0.9 | K109: 0.05 | L109: 0.8 | M109: 182 | N109: 122.9 | O109: 20.7 | P109: 0.4
B110: 465/21 | C110: Кофейный напиток с молоком | D110: 200 | E110: 3 | F110: 3.27 | G110: 18.36 | H110: 114.2 | I110: 0.04 | J110: 1 | K110: 0.02 | L110: 0.03 | M110: 122.9 | N110: 109.9 | O110: 22.05 | P110: 0.03
B111: 227/16 | C111: Яйцо вареное | D111: 1 шт. | E111: 3.08 | F111: 4.6 | G111: 0.28 | H111: 62.84 | I111: 0.05 | J111: 1.73 | K111: 0 | L111: 1.05 | M111: 259.2 | N111: 211.68 | O111: 22.4 | P111: 0.22
B112: 576/21 | C112: Батон | D112: 30 | E112: 2.3 | F112: 0.9 | G112: 15.4 | H112: 78.6 | I112: 0 | J112: 0 | K112: 0 | L112: 0 | M112: 5.7 | N112: 19.5 | O112: 3.9 | P112: 0.3
E113: =SUM(E108:E112) -> 16.21 | F113: =SUM(F108:F112) -> 17.72 | G113: =SUM(G108:G112) -> 78.68 | H113: =SUM(H108:H112) -> 623.96 | I113: 0.22 | J113: 93.93 | K113: 0.17 | L113: 1.88 | M113: 620.95 | N113: 519.98 | O113: 88.65 | P113: 1.4
C114: 2 Завтрак
B115: 442 | C115: Сок | D115: 200 | E115: 1 | F115: 0.2 | G115: 20.2 | H115: 86 | I115: 0 | J115: 4 | K115: 0 | L115: 0 | M115: 14 | N115: 14 | O115: 8 | P115: 2.8
E116: =SUM(E115) -> 1 | F116: =SUM(F115) -> 0.2 | G116: 20.2 | H116: 86 | I116: 0 | J116: 4 | K116: 0 | L116: 0 | M116: 14 | N116: 14 | O116: 8 | P116: 2.8
C117: Обед
B118: 45/17 | C118: Салат из белокочанной капусты | D118: 60 | E118: 0.78 | F118: 1.94 | G118: 3.87 | H118: 36 | I118: 0.013 | J118: 6.25 | K118: - | L118: 0.06 | M118: 16.98 | N118: 46.98 | O118: 6.05 | P118: 0.27
B119: 139/04 | C119: Суп картофельный с бобовыми (горох) на мясокостном бульоне (говяжий) | D119: 250 | E119: 13.28 | F119: 8.57 | G119: 19.58 | H119: 172.61 | I119: 0.06 | J119: 11.5 | K119: 0.19 | L119: 0.49 | M119: 105.05 | N119: 182.12 | O119: 27.61 | P119: 1.12
B120: 279 | C120: Тефтели говяжьи (2 вариант) | D120: 50/50 | E120: 12.54 | F120: 19.04 | G120: 9.93 | H120: 261.21 | I120: 0.01 | J120: 0.11 | K120: 3.33 | L120: 0.11 | M120: 186.25 | N120: 6.2 | O120: 25.18 | P120: 1.15
B121: 312/17 | C121: Пюре картофельное с маслом | D121: 180/5 | E121: 3.71 | F121: 9.94 | G121: 26.4 | H121: 206.4 | I121: 0.2 | J121: 9.53 | K121: 0.1 | L121: 0.4 | M121: 57.37 | N121: 101.7 | O121: 9.6 | P121: 1.4
B122: 342/16 | C122: Компот из свежих плодов (яблок) | D122: 200 | E122: 0.2 | F122: 0.2 | G122: 18.4 | H122: 76.3 | I122: 0 | J122: 1.6 | K122: 0 | L122: 0.3 | M122: 13 | N122: 4 | O122: 4.4 | P122: 0.8
B123: 573/21 | C123: Хлеб Пшеничный | D123: 30 | E123: 2.3 | F123: 0.24 | G123: 14.8 | H123: 70.8 | I123: 0 | J123: 0 | K123: 0 | L123: 0 | M123: 5.7 | N123: 19.5 | O123: 3.9 | P123: 0.3
B124: 574/21 | C124: Хлеб Ржаной (ржано-пшеничный) | D124: 30 | E124: 1.98 | F124: 0.36 | G124: 10.02 | H124: 51.3 | I124: 0.06 | J124: 0 | K124: 0 | L124: 0.33 | M124: 10.5 | N124: 48 | O124: 13.5 | P124: 1.2
E125: =SUM(E118:E124) -> 34.79 | F125: =SUM(F118:F124) -> 40.29 | G125: =SUM(G118:G124) -> 103 | H125: =SUM(H118:H124) -> 874.62 | I125: 0.44 | J125: 30.34 | K125: 3.62 | L125: 2.93 | M125: 414.47 | N125: 389.12 | O125: 118.39 | P125: 7.22
C126: итого за день | E126: =E113+E115+E125 -> 52.00 | F126: =F113+F115+F125 -> 58.21 | G126: =G113+G115+G125 -> 201.88 | H126: =H113+H115+H125 -> 1584.58 | I126: 0.66 | J126: 128.27 | K126: 3.79 | L126: 4.81 | M126: 1049.42 | N126: 923.1 | O126: 215.04 | P126: 11.42
C127: 7 день
C128: Завтрак
B129: 15/17 | C129: Сыр порциями | D129: 15 | E129: 4.42 | F129: 4.16 | G129: 0 | H129: 55.11 | I129: 0 | J129: 0 | K129: 0.12 | L129: 0.07 | M129: 165 | N129: 99 | O129: 9.08 | P129: 0.12
B130: 175/17 | C130: Каша молочная Дружба с маслом | D130: 200/5 | E130: 6.2 | F130: 9 | G130: 26.8 | H130: 211.8 | I130: 0.1 | J130: 0.8 | K130: 0 | L130: 0.4 | M130: 159.4 | N130: 143.8 | O130: 29.1 | P130: 0.6
B131: 377/17 | C131: Чай с лимоном | D131: 200/10/7 | E131: 0.27 | F131: 0.06 | G131: 15.23 | H131: 63 | I131: 0.003 | J131: 2.8 | K131: 0 | L131: 0.014 | M131: 3.25 | N131: 1.54 | O131: 0.84 | P131: 0.087
B132: 576/21 | C132: Батон | D132: 30 | E132: 2.3 | F132: 0.9 | G132: 15.4 | H132: 78.6 | I132: 0 | J132: 0 | K132: 0 | L132: 0 | M132: 5.7 | N132: 19.5 | O132: 3.9 | P132: 0.3
E133: =SUM(E129:E132) -> 13.19 | F133: =SUM(F129:F132) -> 14.12 | G133: =SUM(G129:G132) -> 57.43 | H133: =SUM(H129:H132) -> 408.51 | I133: =SUM(I129:I132) -> 0.103 | J133: 6.4 | K133: 44 | L133: 0.414 | M133: 546.05 | N133: 439.34 | O133: 71.04 | P133: 1.687
C134: 2 Завтрак
B135: 442 | C135: Сок | D135: 200 | E135: 1 | F135: 0.2 | G135: 20.2 | H135: 86 | I135: 0 | J135: 4 | K135: 0 | L135: 0 | M135: 14 | N135: 14 | O135: 8 | P135: 2.8
E136: =SUM(E135) -> 1 | F136: =SUM(F135) -> 0.2 | G136: 20.2 | H136: 86 | I136: 0 | J136: 4 | K136: 0 | L136: 0 | M136: 14 | N136: 14 | O136: 8 | P136: 2.8
C137: Обед
B138: 71 | C138: Огурец свежий порционно | D138: 60 | E138: 0.42 | F138: 0.06 | G138: 1.14 | H138: 6.78 | I138: 0.020 | J138: 2.940 | K138: 0.000 | L138: 0.000 | M138: 10.200 | N138: 18.000 | O138: 8.400 | P138: 0.300
B139: 124/04 | C139: Щи из свежей капусты с картофелем на мясокостном бульоне (говяжий) со сметаной | D139: 250/10 | E139: 8.17 | F139: 14.05 | G139: 8.99 | H139: 195.09 | I139: 0.05 | J139: 5.56 | K139: 0.13 | L139: 0.67 | M139: 101.37 | N139: 153.29 | O139: 19.22 | P139: 1.09
B140: 234 | C140: Биточки рыбные с соусом | D140: 75/25 | E140: 12.9 | F140: 4.9 | G140: 9.5 | H140: 134.3 | I140: 0.16 | J140: 7.9 | K140: 0.043 | L140: 0.9 | M140: 23.8 | N140: 127.2 | O140: 49.3 | P140: 0.9
B141: 202/17 | C141: Макаронные изделия отварные с маслом | D141: 180/5 | E141: 8.5 | F141: 5.9 | G141: 54.7 | H141: 305.9 | I141: 0.1 | J141: 0 | K141: 0 | L141: 1.8 | M141: 14.3 | N141: 63.5 | O141: 11.5 | P141: 1.4
B142: 349 | C142: Компот из смеси сухофруктов | D142: 200 | E142: 0.5 | F142: 0.02 | G142: 19.43 | H142: 79.92 | I142: 0 | J142: 0.03 | K142: 0.75 | L142: 0 | M142: 17.25 | N142: 28.8 | O142: 13.8 | P142: 1.95
B143: 573/21 | C143: Хлеб Пшеничный | D143: 30 | E143: 2.3 | F143: 0.24 | G143: 14.8 | H143: 70.8 | I143: 0 | J143: 0 | K143: 0 | L143: 0 | M143: 5.7 | N143: 19.5 | O143: 3.9 | P143: 0.3
B144: 574/21 | C144: Хлеб Ржаной (ржано-пшеничный) | D144: 30 | E144: 1.98 | F144: 0.36 | G144: 10.02 | H144: 51.3 | I144: 0.06 | J144: 0 | K144: 0 | L144: 0.33 | M144: 10.5 | N144: 48 | O144: 13.5 | P144: 1.2
B145: 338 | C145: Плоды и ягоды свежие | D145: 150 | E145: 0.6 | F145: 0.6 | G145: 11.2 | H145: 70.5 | I145: 0.45 | J145: 12 | K145: 0 | L145: 1.3 | M145: 24 | N145: 22 | O145: 15.98 | P145: 0.045
E146: =SUM(E138:E145) -> 35.37 | F146: =SUM(F138:F145) -> 26.13 | G146: =SUM(G138:G145) -> 129.78 | H146: =SUM(H138:H145) -> 914.59 | I146: 0.49 | J146: 133.89 | K146: 1.053 | L146: 3.7 | M146: 241.12 | N146: 514.96 | O146: 137.35 | P146: 7.44
C147: итого за день | E147: =E133+E135+E146 -> 49.56 | F147: =F133+F135+F146 -> 40.45 | G147: =G133+G135+G146 -> 207.41 | H147: =H133+H135+H146 -> 1409.1 | I147: 0.673 | J147: 144.29 | K147: 45.053 | L147: 4.114 | M147: 801.17 | N147: 968.3 | O147: 216.39 | P147: 11.927
C148: 8 день
C149: Завтрак
B150: 470/21 | C150: Йогурт 2,5% | D150: 200 | E150: 5.8 | F150: 5 | G150: 8 | H150: 101 | I150: 0.08 | J150: 1.4 | K150: 40.1 | L150: 0 | M150: 240.8 | N150: 180.6 | O150: 28.1 | P150: 0.2
B151: 311/04 | C151: Каша молочная манная (жидкая) с маслом | D151: 200/5 | E151: 6.19 | F151: 6.57 | G151: 32.99 | H151: 215.91 | I151: 0.09 | J151: 2.35 | K151: 1.37 | L151: 0.57 | M151: 135.18 | N151: 122.94 | O151: 20.42 | P151: 0.43
B152: 465/21 | C152: Кофейный напиток с молоком | D152: 200 | E152: 3 | F152: 3.27 | G152: 18.36 | H152: 114.2 | I152: 0.04 | J152: 1 | K152: 0.02 | L152: 0.03 | M152: 122.9 | N152: 109.9 | O152: 22.05 | P152: 0.03
B153: 573/21 | C153: Хлеб Пшеничный | D153: 30 | E153: 2.3 | F153: 0.24 | G153: 14.8 | H153: 70.8 | I153: 0 | J153: 0 | K153: 0 | L153: 0 | M153: 5.7 | N153: 19.5 | O153: 3.9 | P153: 0.3
E154: =SUM(E150:E153) -> 17.29 | F154: 15.08 | G154: 74.15 | H154: 501.91 | I154: 0.21 | J154: 4.75 | K154: 41.49 | L154: 0.6 | M154: 504.58 | N154: 432.94 | O154: 74.47 | P154: 0.96
C155: 2 Завтрак
B156: 442 | C156: Сок | D156: 200 | E156: 1 | F156: 0.2 | G156: 20.2 | H156: 86 | I156: 0 | J156: 4 | K156: 0 | L156: 0 | M156: 14 | N156: 14 | O156: 8 | P156: 2.8
E157: =SUM(E156) -> 1 | F157: =SUM(F156) -> 0.2 | G157: 20.2 | H157: 86 | I157: 0 | J157: 4 | K157: 0 | L157: 0 | M157: 14 | N157: 14 | O157: 8 | P157: 2.8
C158: Обед
B159: 25 | C159: Салат Степной | D159: 60 | E159: 1.29 | F159: 4.96 | G159: 7.12 | H159: 78.30 | I159: 0.100 | J159: 10.700 | K159: 0.060 | L159: 0.120 | M159: 24.240 | N159: 9.420 | O159: 14.040 | P159: 0.610
B160: 101 | C160: Суп картофельный с гречневой крупой на кб | D160: 250 | E160: 6.37 | F160: 13.71 | G160: 10.52 | H160: 225.95 | I160: 0.03 | J160: 6.91 | K160: 1.14 | L160: 0.31 | M160: 14.16 | N160: 110.15 | O160: 43.05 | P160: 1.03
B161: 321 | C161: Капуста тушеная | D161: 180 | E161: 3.72 | F161: 11.93 | G161: 16.8 | H161: 135.24 | I161: 0.2 | J161: 30.89 | K161: 0.1 | L161: 0.4 | M161: 99.84 | N161: 101.7 | O161: 37.18 | P161: 1.45
B162: 347/21 | C162: Котлеты Школьные с соусом | D162: 75/25 | E162: 15.3 | F162: 11 | G162: 13.3 | H162: 213 | I162: 0.14 | J162: 0 | K162: 30 | L162: 1.4 | M162: 50 | N162: 136 | O162: 21 | P162: 2.07
B163: 494/21 | C163: Компот из изюма | D163: 200 | E163: 0.3 | F163: 0.01 | G163: 17.5 | H163: 72 | I163: 0 | J163: 0.1 | K163: 0 | L163: 0.1 | M163: 16.4 | N163: 10.7 | O163: 4.3 | P163: 0.9
B164: 573/21 | C164: Хлеб Пшеничный | D164: 30 | E164: 2.3 | F164: 0.24 | G164: 14.8 | H164: 70.8 | I164: 0 | J164: 0 | K164: 0 | L164: 0 | M164: 5.7 | N164: 19.5 | O164: 3.9 | P164: 0.3
B165: 574/21 | C165: Хлеб Ржаной (ржано-пшеничный) | D165: 30 | E165: 1.98 | F165: 0.36 | G165: 10.02 | H165: 51.3 | I165: 0.06 | J165: 0 | K165: 0 | L165: 0.33 | M165: 10.5 | N165: 48 | O165: 13.5 | P165: 1.2
B166: 338 | C166: Плоды и ягоды свежие | D166: 150 | E166: 0.6 | F166: 0.6 | G166: 11.2 | H166: 70.5 | I166: 0.45 | J166: 12 | K166: 0 | L166: 1.3 | M166: 24 | N166: 22 | O166: 15.98 | P166: 0.045
C167: Шоколад молочный | D167: 90 | E167: 9.8 | F167: 34.7 | G167: 50.4 | H167: 554 | I167: 8 | J167: 0 | K167: 22 | L167: 0.8 | M167: 352 | N167: 309 | O167: 68 | P167: 1.5
E168: =SUM(E159:E167) -> 41.66 | F168: =SUM(F159:F167) -> 77.51 | G168: =SUM(G159:G167) -> 151.66 | H168: =SUM(H159:H167) -> 1471.09 | I168: =SUM(I159:I167) -> 8.980 | J168: 71.135 | K168: 1.361 | L168: 3.82 | M168: 231.54 | N168: 468.1 | O168: 179.18 | P168: 6.87
C169: Итого за день | E169: =E154+E156+E168 -> 59.95 | F169: =F154+F156+F168 -> 92.79 | G169: =G154+G156+G168 -> 246.01 | H169: =H154+H156+H168 -> 2059.00 | I169: 1.373 | J169: 81.185 | K169: 46.751 | L169: 4.42 | M169: 754.12 | N169: 925.24 | O169: 264.55 | P169: 11.35
C170: 9 день
B171: 203 | C171: Запеканка рисовая с творогом с повидлом | D171: 180/20 | E171: 18.76 | F171: 19.24 | G171: 36.45 | H171: 365 | I171: 0.08 | J171: 0.11 | K171: 0 | L171: 2.1 | M171: 102 | N171: 209.4 | O171: 43.8 | P171: 1.68
B172: 576/21 | C172: Батон | D172: 30 | E172: 2.3 | F172: 0.9 | G172: 15.4 | H172: 78.6 | I172: 0 | J172: 0 | K172: 0 | L172: 0 | M172: 5.7 | N172: 19.5 | O172: 3.9 | P172: 0.3
B173: 457/21 | C173: Чай с сахаром | D173: 200 | E173: 0.2 | F173: 0.1 | G173: 9.3 | H173: 38 | I173: 0 | J173: 0 | K173: 0 | L173: 0 | M173: 5.1 | N173: 7.7 | O173: 4.2 | P173: 0.82
E174: 15.09 | F174: 19.23 | G174: 87.15 | H174: =SUM(H171:H173) -> 481.6 | I174: 0.08 | J174: 0.11 | K174: 0.2 | L174: 2.3 | M174: 113.95 | N174: 239.05 | O174: 52.1 | P174: 2.82
C175: 2 Завтрак
B176: 442 | C176: Сок | D176: 200 | E176: 1 | F176: 0.2 | G176: 20.2 | H176: 86 | I176: 0 | J176: 4 | K176: 0 | L176: 0 | M176: 14 | N176: 14 | O176: 8 | P176: 2.8
E177: =SUM(E176) -> 1 | F177: =SUM(F176) -> 0.2 | G177: 20.2 | H177: 86 | I177: 0 | J177: 4 | K177: 0 | L177: 0 | M177: 14 | N177: 14 | O177: 8 | P177: 2.8
C178: Обед
B179: 2/21 | C179: Салат витаминный | D179: 60 | E179: 0.72 | F179: 3.06 | G179: 3.30 | H179: 43.80 | I179: 0.020 | J179: 7.800 | K179: 0.000 | L179: 1.440 | M179: 20.400 | N179: 18.000 | O179: 10.800 | P179: 0.560
B180: 148/04 | C180: Суп-лапша домашняя с цыплятами отварными | D180: 250/25 | E180: 7.88 | F180: 12.08 | G180: 10.91 | H180: 183.79 | I180: 0.09 | J180: 3.23 | K180: 0.7 | L180: 0.28 | M180: 105.94 | N180: 130.51 | O180: 10.04 | P180: 1.09
B181: 279 | C181: Тефтели говяжьи (2 вариант) | D181: 50/50 | E181: 12.54 | F181: 19.04 | G181: 9.93 | H181: 261.21 | I181: 0.01 | J181: 0.11 | K181: 3.33 | L181: 0.11 | M181: 186.25 | N181: 6.2 | O181: 25.18 | P181: 1.15
B182: 171/17 | C182: Каша гречневая рассыпчатая с маслом | D182: 180/5 | E182: 10.1 | F182: 7.5 | G182: 45.9 | H182: 291 | I182: 0.3 | J182: 0 | K182: 0 | L182: 5.6 | M182: 27 | N182: 224.2 | O182: 150.7 | P182: 5.3
B183: 349 | C183: Компот из смеси сухофруктов | D183: 200 | E183: 0.5 | F183: 0.02 | G183: 19.43 | H183: 79.92 | I183: 0 | J183: 0.03 | K183: 0.75 | L183: 0 | M183: 17.25 | N183: 28.8 | O183: 13.8 | P183: 1.95
B184: 573/21 | C184: Хлеб Пшеничный | D184: 30 | E184: 2.3 | F184: 0.24 | G184: 14.8 | H184: 70.8 | I184: 0 | J184: 0 | K184: 0 | L184: 0 | M184: 5.7 | N184: 19.5 | O184: 3.9 | P184: 0.3
B185: 574/21 | C185: Хлеб Ржаной (ржано-пшеничный) | D185: 30 | E185: 1.98 | F185: 0.36 | G185: 10.02 | H185: 51.3 | I185: 0.06 | J185: 0 | K185: 0 | L185: 0.33 | M185: 10.5 | N185: 48 | O185: 13.5 | P185: 1.2
B186: 338 | C186: Плоды и ягоды свежие | D186: 150 | E186: 0.6 | F186: 0.6 | G186: 11.2 | H186: 70.5 | I186: 0.45 | J186: 12 | K186: 0 | L186: 1.3 | M186: 24 | N186: 22 | O186: 15.98 | P186: 0.045
E187: =SUM(E179:E186) -> 36.62 | F187: =SUM(F179:F186) -> 42.90 | G187: =SUM(G179:G186) -> 125.49 | H187: =SUM(H179:H186) -> 1052.32 | I187: 0.585 | J187: 52.61 | K187: 4.78 | L187: 8.632 | M187: 223.212 | N187: 640.183 | O187: 253.55 | P187: 1.2
C188: Итого за день | E188: =E174+E176+E187 -> 52.71 | F188: =F174+F176+F187 -> 62.33 | G188: =G174+G176+G187 -> 232.84 | H188: =H174+H176+H187 -> 1619.92 | I188: 0.665 | J188: 56.72 | K188: 4.98 | L188: 10.932 | M188: 351.162 | N188: 893.233 | O188: 313.65 | P188: 6.82
C189: 10 день
B190: 338 | C190: Плоды и ягоды свежие | D190: 150 | E190: 0.6 | F190: 0.6 | G190: 11.2 | H190: 70.5 | I190: 0.45 | J190: 12 | K190: 0 | L190: 1.3 | M190: 24 | N190: 22 | O190: 15.98 | P190: 0.045
B191: 174/17 | C191: Каша рисовая молочная вязкая с маслом | D191: 200/5 | E191: 5.7 | F191: 8.01 | G191: 38.4 | H191: 249.6 | I191: 0.05 | J191: 1.3 | K191: 0.05 | L191: 0.91 | M191: 122.9 | N191: 150 | O191: 34.9 | P191: 1.3
B192: 15/17 | C192: Сыр порциями | D192: 15 | E192: 4.42 | F192: 4.16 | G192: 0 | H192: 55.11 | I192: 0 | J192: 0 | K192: 0.12 | L192: 0.07 | M192: 165 | N192: 99 | O192: 9.08 | P192: 0.12
B193: 377/17 | C193: Чай с лимоном | D193: 200/10/7 | E193: 0.27 | F193: 0.06 | G193: 15.23 | H193: 63 | I193: 0.003 | J193: 2.8 | K193: 0 | L193: 0.014 | M193: 3.25 | N193: 1.54 | O193: 0.84 | P193: 0.087
B194: 576/21 | C194: Батон | D194: 30 | E194: 2.3 | F194: 0.9 | G194: 15.4 | H194: 78.6 | I194: 0 | J194: 0 | K194: 0 | L194: 0 | M194: 5.7 | N194: 19.5 | O194: 3.9 | P194: 0.3
E195: =SUM(E190:E194) -> 13.29 | F195: =SUM(F190:F194) -> 13.73 | G195: =SUM(G190:G194) -> 80.23 | H195: =SUM(H190:H194) -> 516.81 | I195: 0.653 | J195: 20.1 | K195: 0.17 | L195: 2.724 | M195: 328.85 | N195: 299.37 | O195: 70.02 | P195: 1.867
C196: 2 Завтрак
B197: 442 | C197: Сок | D197: 200 | E197: 1 | F197: 0.2 | G197: 20.2 | H197: 86 | I197: 0 | J197: 4 | K197: 0 | L197: 0 | M197: 14 | N197: 14 | O197: 8 | P197: 2.8
E198: =SUM(E197) -> 1 | F198: =SUM(F197) -> 0.2 | G198: 20.2 | H198: 86 | I198: 0 | J198: 4 | K198: 0 | L198: 0 | M198: 14 | N198: 14 | O198: 8 | P198: 2.8
C199: Обед
B200: 71 | C200: Огурец свежий порционно | D200: 60 | E200: 0.42 | F200: 0.06 | G200: 1.14 | H200: 6.78 | I200: 0.020 | J200: 2.940 | K200: 0.000 | L200: 0.000 | M200: 10.200 | N200: 18.000 | O200: 8.400 | P200: 0.300
B201: 82/17 | C201: Борщ с мясными фрикадельками со сметаной | D201: 230/20/5 | E201: 7.53 | F201: 9.72 | G201: 14 | H201: 174.6 | I201: 0.1 | J201: 10.56 | K201: 0.31 | L201: 2.1 | M201: 47.9 | N201: 101.6 | O201: 34.3 | P201: 2.1
B202: 202/17 | C202: Макаронные изделия отварные с маслом | D202: 180/5 | E202: 8.5 | F202: 5.9 | G202: 54.7 | H202: 305.9 | I202: 0.1 | J202: 0 | K202: 0 | L202: 1.8 | M202: 14.3 | N202: 63.5 | O202: 11.5 | P202: 1.4
... 228 more rows

Sheet меню трудовые
A1: Примерное меню питания для детей в период отдыха и оздоровления
A2: (ЛТО) на 2024г
B5: № НТД | C5: Наименование блюд | D5: Выход, г | E5: Белки, г | F5: Жиры, г | G5: Углеводы, г | H5: Энерг. ценнность, ккал | I5: Витамин B1, мг | J5: Витамин С, мг | K5: Витамин А, мг | L5: Витамин Е, мг | M5: Ca, мг | N5: P, мг | O5: Mg, мг | P5: Fe, мг
C6: 1 день
C7: Завтрак
B8: 470/21 | C8: Йогурт 2,5% | D8: 200 | E8: 5.8 | F8: 5 | G8: 8 | H8: 101 | I8: 0.08 | J8: 1.4 | K8: 40.1 | L8: 0 | M8: 240.8 | N8: 180.6 | O8: 28.1 | P8: 0.2
B9: 181 | C9: Каша молочная манная (жидкая) с маслом | D9: 200/5 | E9: 6.19 | F9: 6.57 | G9: 32.99 | H9: 215.91 | I9: 0.09 | J9: 2.35 | K9: 1.37 | L9: 0.57 | M9: 135.18 | N9: 122.94 | O9: 20.42 | P9: 0.43
B10: 457/21 | C10: Чай с сахаром | D10: 200 | E10: 0.2 | F10: 0.1 | G10: 9.3 | H10: 38 | I10: 0 | J10: 0 | K10: 0 | L10: 0 | M10: 5.1 | N10: 7.7 | O10: 4.2 | P10: 0.82
B11: 576/21 | C11: Батон | D11: 30 | E11: 2.3 | F11: 0.9 | G11: 15.4 | H11: 78.6 | I11: 0 | J11: 0 | K11: 0 | L11: 0 | M11: 5.7 | N11: 19.5 | O11: 3.9 | P11: 0.3
E12: =SUM(E8:E11) -> 14.49 | F12: 12.57 | G12: 65.69 | H12: 433.51 | I12: 0.17 | J12: 3.75 | K12: 41.47 | L12: 0.57 | M12: 386.78 | N12: 330.74 | O12: 56.62 | P12: 1.75
C13: 2 Завтрак
B14: 442 | C14: Сок | D14: 200 | E14: 1 | F14: 0.2 | G14: 20.2 | H14: 86 | I14: 0 | J14: 4 | K14: 0 | L14: 0 | M14: 14 | N14: 14 | O14: 8 | P14: 2.8
E15: =SUM(E14) -> 1 | F15: =SUM(F14) -> 0.2 | G15: 20.2 | H15: 86 | I15: 0 | J15: 4 | K15: 0 | L15: 0 | M15: 14 | N15: 14 | O15: 8 | P15: 2.8
C16: Обед
B17: 45/17 | C17: Салат из белокочанной капусты | D17: 60 | E17: 0.78 | F17: 1.94 | G17: 3.87 | H17: 36 | I17: 0.013 | J17: 6.25 | K17: 0 | L17: 0.06 | M17: 16.98 | N17: 46.98 | O17: 6.05 | P17: 0.27
B18: 101 | C18: Суп картофельный с гречневой крупой на кб | D18: 250 | E18: 6.37 | F18: 13.71 | G18: 10.52 | H18: 225.95 | I18: 0.03 | J18: 6.91 | K18: 1.14 | L18: 0.31 | M18: 14.16 | N18: 110.15 | O18: 43.05 | P18: 1.03
B19: 312 | C19: Пюре картофельное с маслом | D19: 180/5 | E19: 3.71 | F19: 9.94 | G19: 26.4 | H19: 206.4 | I19: 0.2 | J19: 9.53 | K19: 0.1 | L19: 0.4 | M19: 57.37 | N19: 101.7 | O19: 9.6 | P19: 1.4
B20: 347/21 | C20: Котлеты Школьные с соусом | D20: 75/25 | E20: 15.3 | F20: 11 | G20: 13.3 | H20: 213 | I20: 0.14 | J20: 0 | K20: 30 | L20: 1.4 | M20: 50 | N20: 136 | O20: 21 | P20: 2.07
B21: 494/21 | C21: Компот из изюма | D21: 200 | E21: 0.3 | F21: 0.01 | G21: 17.5 | H21: 72 | I21: 0 | J21: 0.1 | K21: 0 | L21: 0.1 | M21: 16.4 | N21: 10.7 | O21: 4.3 | P21: 0.9
B22: 573/21 | C22: Хлеб Пшеничный | D22: 30 | E22: 2.3 | F22: 0.24 | G22: 14.8 | H22: 70.8 | I22: 0 | J22: 0 | K22: 0 | L22: 0 | M22: 5.7 | N22: 19.5 | O22: 3.9 | P22: 0.3
B23: 574/21 | C23: Хлеб Ржаной (ржано-пшеничный) | D23: 30 | E23: 1.98 | F23: 0.36 | G23: 10.02 | H23: 51.3 | I23: 0.06 | J23: 0 | K23: 0 | L23: 0.33 | M23: 10.5 | N23: 48 | O23: 13.5 | P23: 1.2
B24: 338 | C24: Плоды и ягоды свежие | D24: 150 | E24: 0.6 | F24: 0.6 | G24: 11.2 | H24: 70.5 | I24: 0.45 | J24: 12 | K24: 0 | L24: 1.3 | M24: 24 | N24: 22 | O24: 15.98 | P24: 0.045
B25: день защиты детей | C25: Шоколад молочный | D25: 90 | E25: 9.8 | F25: 34.7 | G25: 50.4 | H25: 554 | I25: 8 | J25: 0 | K25: 22 | L25: 0.8 | M25: 352 | N25: 309 | O25: 68 | P25: 1.5
E26: =SUM(E17:E25) -> 41.14 | F26: =SUM(F17:F25) -> 72.50 | G26: =SUM(G17:G25) -> 158.01 | H26: =SUM(H17:H25) -> 1499.95 | I26: =SUM(I17:I25) -> 8.89 | J26: =SUM(J17:J25) -> 34.79 | K26: =SUM(K17:K25) -> 53.24 | L26: =SUM(L17:L25) -> 4.70 | M26: =SUM(M17:M25) -> 547.11 | N26: =SUM(N17:N25) -> 804.03 | O26: =SUM(O17:O25) -> 185.38 | P26: =SUM(P17:P25) -> 8.72
C27: Итого за день | E27: =E12+E14+E26 -> 56.63 | F27: =F12+F14+F26 -> 85.27 | G27: =G12+G14+G26 -> 243.9 | H27: =H12+H14+H26 -> 2019.46 | I27: 1.283 | J27: 44.465 | K27: 46.731 | L27: 4.35 | M27: 570.6 | N27: 856.39 | O27: 208.32 | P27: 11.17
C28: 2 день
B29: 203 | C29: Запеканка рисовая с творогом с повидлом | D29: 180/20 | E29: 18.76 | F29: 19.24 | G29: 36.45 | H29: 365 | I29: 0.08 | J29: 0.11 | K29: 0 | L29: 2.1 | M29: 102 | N29: 209.4 | O29: 43.8 | P29: 1.68
B30: 576/21 | C30: Батон | D30: 30 | E30: 2.3 | F30: 0.9 | G30: 15.4 | H30: 78.6 | I30: 0 | J30: 0 | K30: 0 | L30: 0 | M30: 5.7 | N30: 19.5 | O30: 3.9 | P30: 0.3
B31: 457/21 | C31: Чай с сахаром | D31: 200 | E31: 0.2 | F31: 0.1 | G31: 9.3 | H31: 38 | I31: 0 | J31: 0 | K31: 0 | L31: 0 | M31: 5.1 | N31: 7.7 | O31: 4.2 | P31: 0.82
B32: 338 | C32: Плоды и ягоды свежие | D32: 150 | E32: 0.6 | F32: 0.6 | G32: 11.2 | H32: 70.5 | I32: 0.45 | J32: 12 | K32: 0 | L32: 1.3 | M32: 24 | N32: 22 | O32: 15.98 | P32: 0.045
E33: =SUM(E29:E32) -> 21.86 | F33: =SUM(F29:F32) -> 20.84 | G33: =SUM(G29:G32) -> 72.35 | H33: =SUM(H29:H32) -> 552.1 | I33: 0.14 | J33: 40.01 | K33: 0.1 | L33: 3.15 | M33: 149.8 | N33: 285.15 | O33: 88.1 | P33: 11.976
C34: 2 Завтрак
B35: 442 | C35: Сок | D35: 200 | E35: 1 | F35: 0.2 | G35: 20.2 | H35: 86 | I35: 0 | J35: 4 | K35: 0 | L35: 0 | M35: 14 | N35: 14 | O35: 8 | P35: 2.8
E36: =SUM(E35) -> 1 | F36: =SUM(F35) -> 0.2 | G36: 20.2 | H36: 86 | I36: 0 | J36: 4 | K36: 0 | L36: 0 | M36: 14 | N36: 14 | O36: 8 | P36: 2.8
C37: Обед
B38: 71 | C38: Помидор свежий порционно | D38: 60 | E38: 0.42 | F38: 0.06 | G38: 1.14 | H38: 6.78 | I38: 0.020 | J38: 2.940 | K38: 0.000 | L38: 0.000 | M38: 10.200 | N38: 18.000 | O38: 8.400 | P38: 0.300
B39: 148/04 | C39: Суп-лапша домашняя с цыплятами отварными | D39: 250/25 | E39: 7.88 | F39: 12.08 | G39: 10.91 | H39: 183.79 | I39: 0.09 | J39: 3.23 | K39: 0.7 | L39: 0.28 | M39: 105.94 | N39: 130.51 | O39: 10.04 | P39: 1.09
B40: 290 | C40: Птица тушеная в соусе | D40: 50/50 | E40: 12.28 | F40: 11.52 | G40: 3.51 | H40: 167 | I40: 0.04 | J40: 2.02 | K40: 56.1 | L40: 1.11 | M40: 42.27 | N40: 100.6 | O40: 15.1 | P40: 1.24
B41: 171/17 | C41: Каша гречневая рассыпчатая с маслом | D41: 180/5 | E41: 10.1 | F41: 7.5 | G41: 45.9 | H41: 291 | I41: 0.3 | J41: 0 | K41: 0 | L41: 5.6 | M41: 27 | N41: 224.2 | O41: 150.7 | P41: 5.3
B42: 349 | C42: Компот из смеси сухофруктов | D42: 200 | E42: 0.5 | F42: 0.02 | G42: 19.43 | H42: 79.92 | I42: 0 | J42: 0.03 | K42: 0.75 | L42: 0 | M42: 17.25 | N42: 28.8 | O42: 13.8 | P42: 1.95
B43: 573/21 | C43: Хлеб Пшеничный | D43: 30 | E43: 2.3 | F43: 0.24 | G43: 14.8 | H43: 70.8 | I43: 0 | J43: 0 | K43: 0 | L43: 0 | M43: 5.7 | N43: 19.5 | O43: 3.9 | P43: 0.3
B44: 574/21 | C44: Хлеб Ржаной (ржано-пшеничный) | D44: 30 | E44: 1.98 | F44: 0.36 | G44: 10.02 | H44: 51.3 | I44: 0.06 | J44: 0 | K44: 0 | L44: 0.33 | M44: 10.5 | N44: 48 | O44: 13.5 | P44: 1.2
E45: =SUM(E38:E44) -> 35.46 | F45: =SUM(F38:F44) -> 31.78 | G45: =SUM(G38:G44) -> 105.71 | H45: =SUM(H38:H44) -> 850.59 | I45: 0.48 | J45: 12.12 | K45: 4.78 | L45: 6.38 | M45: 359.64 | N45: 475.21 | O45: 227.12 | P45: 1.2
C46: Итого за день | E46: =E33+E35+E45 -> 58.32 | F46: =F33+F35+F45 -> 52.82 | G46: =G33+G35+G45 -> 198.26 | H46: =H33+H35+H45 -> 1488.69 | I46: 0.62 | J46: 56.13 | K46: 4.88 | L46: 9.53 | M46: 523.44 | N46: 774.36 | O46: 323.22 | P46: 15.976
C47: 3 день
B48: 338 | C48: Плоды и ягоды свежие | D48: 150 | E48: 0.6 | F48: 0.6 | G48: 11.2 | H48: 70.5 | I48: 0.45 | J48: 12 | K48: 0 | L48: 1.3 | M48: 24 | N48: 22 | O48: 15.98 | P48: 0.045
B49: 174/17 | C49: Каша рисовая молочная вязкая с маслом | D49: 200/5 | E49: 5.7 | F49: 8.01 | G49: 38.4 | H49: 249.6 | I49: 0.05 | J49: 1.3 | K49: 0.05 | L49: 0.91 | M49: 122.9 | N49: 150 | O49: 34.9 | P49: 1.3
B50: 15/17 | C50: Сыр порциями | D50: 15 | E50: 4.42 | F50: 4.16 | G50: 0 | H50: 55.11 | I50: 0 | J50: 0 | K50: 0.12 | L50: 0.07 | M50: 165 | N50: 99 | O50: 9.08 | P50: 0.12
B51: 377/17 | C51: Чай с лимоном | D51: 200/10/7 | E51: 0.27 | F51: 0.06 | G51: 15.23 | H51: 63 | I51: 0.003 | J51: 2.8 | K51: 0 | L51: 0.014 | M51: 3.25 | N51: 1.54 | O51: 0.84 | P51: 0.087
B52: 576/21 | C52: Батон | D52: 30 | E52: 2.3 | F52: 0.9 | G52: 15.4 | H52: 78.6 | I52: 0 | J52: 0 | K52: 0 | L52: 0 | M52: 5.7 | N52: 19.5 | O52: 3.9 | P52: 0.3
E53: =SUM(E48:E52) -> 13.29 | F53: =SUM(F48:F52) -> 13.73 | G53: =SUM(G48:G52) -> 80.23 | H53: =SUM(H48:H52) -> 516.81 | I53: 0.053 | J53: 17.43 | K53: 0.17 | L53: 1.924 | M53: 347.52 | N53: 312.71 | O53: 80.72 | P53: 7.107
C54: 2 Завтрак
B55: 442 | C55: Сок | D55: 200 | E55: 1 | F55: 0.2 | G55: 20.2 | H55: 86 | I55: 0 | J55: 4 | K55: 0 | L55: 0 | M55: 14 | N55: 14 | O55: 8 | P55: 2.8
E56: =SUM(E55) -> 1 | F56: =SUM(F55) -> 0.2 | G56: 20.2 | H56: 86 | I56: 0 | J56: 4 | K56: 0 | L56: 0 | M56: 14 | N56: 14 | O56: 8 | P56: 2.8
C57: Обед
B58: 71 | C58: Огурец свежий порционно | D58: 60 | E58: 0.42 | F58: 0.06 | G58: 1.14 | H58: 6.78 | I58: 0.020 | J58: 2.940 | K58: 0.000 | L58: 0.000 | M58: 10.200 | N58: 18.000 | O58: 8.400 | P58: 0.300
B59: 82/17 | C59: Борщ с мясными фрикадельками со сметаной | D59: 230/20/5 | E59: 7.53 | F59: 9.72 | G59: 14 | H59: 174.6 | I59: 0.1 | J59: 10.56 | K59: 0.31 | L59: 2.1 | M59: 47.9 | N59: 101.6 | O59: 34.3 | P59: 2.1
B60: 202/17 | C60: Макаронные изделия отварные с маслом | D60: 180/5 | E60: 8.5 | F60: 5.9 | G60: 54.7 | H60: 305.9 | I60: 0.1 | J60: 0 | K60: 0 | L60: 1.8 | M60: 14.3 | N60: 63.5 | O60: 11.5 | P60: 1.4
B61: 295 | C61: Котлеты куриные с соусом | D61: 70/30 | E61: 12.13 | F61: 17.4 | G61: 9.86 | H61: 245 | I61: 0.08 | J61: 1.25 | K61: 0.042 | L61: 0.286 | M61: 11.45 | N61: 153.39 | O61: 22.43 | P61: 1.23
B62: 494/21 | C62: Компот из кураги | D62: 200 | E62: 0.3 | F62: 0.01 | G62: 17.5 | H62: 72 | I62: 0 | J62: 0.1 | K62: 0 | L62: 0.1 | M62: 16.4 | N62: 10.7 | O62: 4.3 | P62: 0.9
B63: 573/21 | C63: Хлеб Пшеничный | D63: 30 | E63: 2.3 | F63: 0.24 | G63: 14.8 | H63: 70.8 | I63: 0 | J63: 0 | K63: 0 | L63: 0 | M63: 5.7 | N63: 19.5 | O63: 3.9 | P63: 0.3
B64: 574/21 | C64: Хлеб Ржаной (ржано-пшеничный) | D64: 30 | E64: 1.98 | F64: 0.36 | G64: 10.02 | H64: 51.3 | I64: 0.06 | J64: 0 | K64: 0 | L64: 0.33 | M64: 10.5 | N64: 48 | O64: 13.5 | P64: 1.2
E65: =SUM(E58:E64) -> 33.16 | F65: =SUM(F58:F64) -> 33.69 | G65: 125.57 | H65: =SUM(H58:H64) -> 926.38 | I65: 0.542 | J65: 30.11 | K65: 0.472 | L65: 4.722 | M65: 251.85 | N65: 508.11 | O65: 124.83 | P65: 7.61
C66: итого за день | E66: =E53+E55+E65 -> 47.45 | F66: =F53+F55+F65 -> 47.62 | G66: =G53+G55+G65 -> 226 | H66: =H53+H55+H65 -> 1529.19 | I66: 0.595 | J66: 51.54 | K66: 0.642 | L66: 6.646 | M66: 613.37 | N66: 834.82 | O66: 213.55 | P66: 17.517
C67: 4 день
B68: 214 | C68: Омлет натуральный с маслом | D68: 180/5 | E68: 13.8 | F68: 27.1 | G68: 3.1 | H68: 310 | I68: 0.1 | J68: 0.2 | K68: 0.3 | L68: 5.6 | M68: 106.1 | N68: 211.9 | O68: 16.8 | P68: 2.3
B69: 377/17 | C69: Чай с лимоном | D69: 200/10/7 | E69: 0.27 | F69: 0.06 | G69: 15.23 | H69: 63 | I69: 0.003 | J69: 2.8 | K69: 0 | L69: 0.014 | M69: 3.25 | N69: 1.54 | O69: 0.84 | P69: 0.087
B70: 576/21 | C70: Батон | D70: 30 | E70: 2.3 | F70: 0.9 | G70: 15.4 | H70: 78.6 | I70: 0 | J70: 0 | K70: 0 | L70: 0 | M70: 5.7 | N70: 19.5 | O70: 3.9 | P70: 0.3
B71: 535/21 | C71: Пирожки печеные с картошкой | D71: 70 | E71: 3.10 | F71: 1.60 | G71: 21.10 | H71: 110.70 | I71: 0.000 | J71: 0.030 | K71: 0.060 | L71: 0.000 | M71: 0.000 | N71: 0.000 | O71: 0.000 | P71: 0.000
E72: =SUM(E68:E71) -> 19.47 | F72: =SUM(F68:F71) -> 29.66 | G72: =SUM(G68:G71) -> 54.83 | H72: =SUM(H68:H71) -> 562.3 | I72: 0.103 | J72: 3.03 | K72: 0.36 | L72: 5.614 | M72: 115.05 | N72: 232.94 | O72: 21.54 | P72: 2.687
C73: 2 Завтрак
B74: 442 | C74: Сок | D74: 200 | E74: 1 | F74: 0.2 | G74: 20.2 | H74: 86 | I74: 0 | J74: 4 | K74: 0 | L74: 0 | M74: 14 | N74: 14 | O74: 8 | P74: 2.8
E75: =SUM(E74) -> 1 | F75: =SUM(F74) -> 0.2 | G75: 20.2 | H75: 86 | I75: 0 | J75: 4 | K75: 0 | L75: 0 | M75: 14 | N75: 14 | O75: 8 | P75: 2.8
C76: Обед
B77: 24 | C77: Салат из свежих помидоров и огурцов | D77: 60 | E77: 0.59 | F77: 3.69 | G77: 2.24 | H77: 44.52 | I77: 0.03 | J77: 10.06 | K77: 0 | L77: 0 | M77: 11.21 | N77: 20.77 | O77: 9.76 | P77: 0.44
B78: 132/04 | C78: Рассольник "Ленинградский" с цыплятами отварными со сметаной | D78: 250/25/10 | E78: 8.11 | F78: 12.25 | G78: 10.23 | H78: 183.61 | I78: 0.05 | J78: 6.13 | K78: 0.31 | L78: 0.28 | M78: 103.36 | N78: 93.03 | O78: 20.7 | P78: 1.09
B79: 280 | C79: Фрикадельки говяжьи в соусе | D79: 50/50 | E79: 8.5 | F79: 11.21 | G79: 10.61 | H79: 180 | I79: 0.04 | J79: 0.27 | K79: 5.29 | L79: 2.67 | M79: 24.45 | N79: 79.59 | O79: 14.19 | P79: 5.29
B80: 312/17 | C80: Пюре картофельное с маслом | D80: 180/5 | E80: 3.71 | F80: 9.94 | G80: 26.4 | H80: 206.4 | I80: 0.2 | J80: 9.53 | K80: 0.1 | L80: 0.4 | M80: 57.37 | N80: 101.7 | O80: 9.6 | P80: 1.4
B81: 349 | C81: Компот из смеси сухофруктов | D81: 200 | E81: 0.5 | F81: 0.02 | G81: 19.43 | H81: 79.92 | I81: 0 | J81: 0.03 | K81: 0.75 | L81: 0 | M81: 17.25 | N81: 28.8 | O81: 13.8 | P81: 1.95
B82: 573/21 | C82: Хлеб Пшеничный | D82: 30 | E82: 2.3 | F82: 0.24 | G82: 14.8 | H82: 70.8 | I82: 0 | J82: 0 | K82: 0 | L82: 0 | M82: 5.7 | N82: 19.5 | O82: 3.9 | P82: 0.3
B83: 574/21 | C83: Хлеб Ржаной (ржано-пшеничный) | D83: 30 | E83: 1.98 | F83: 0.36 | G83: 10.02 | H83: 51.3 | I83: 0.06 | J83: 0 | K83: 0 | L83: 0.33 | M83: 10.5 | N83: 48 | O83: 13.5 | P83: 1.2
B84: 338 | C84: Плоды и ягоды свежие | D84: 150 | E84: 0.6 | F84: 0.6 | G84: 11.2 | H84: 70.5 | I84: 0.45 | J84: 12 | K84: 0 | L84: 1.3 | M84: 24 | N84: 22 | O84: 15.98 | P84: 0.045
E85: =SUM(E77:E84) -> 26.29 | F85: =SUM(F77:F84) -> 38.31 | G85: =SUM(G77:G84) -> 104.93 | H85: =SUM(H77:H84) -> 887.05 | I85: 2.68 | J85: 36.3 | K85: 0.42 | L85: 3.33 | M85: 242.79 | N85: 408.32 | O85: 98.07 | P85: 6.22
C86: итого за день | E86: 45.96 | F86: 70.87 | G86: 180.34 | H86: =H72+H74+H85 -> 1535.35 | I86: 2.783 | J86: 43.33 | K86: 0.78 | L86: 8.944 | M86: 371.84 | N86: 655.26 | O86: 127.61 | P86: 11.707
C87: 5 день
B88: 338 | C88: Плоды и ягоды свежие | D88: 150 | E88: 0.6 | F88: 0.6 | G88: 11.2 | H88: 70.5 | I88: 0.45 | J88: 12 | K88: 0 | L88: 1.3 | M88: 24 | N88: 22 | O88: 15.98 | P88: 0.045
B89: 470/21 | C89: Йогурт 2,5% | D89: 200 | E89: 5.8 | F89: 5 | G89: 8 | H89: 101 | I89: 0.08 | J89: 1.4 | K89: 40.1 | L89: 0 | M89: 240.8 | N89: 180.6 | O89: 28.1 | P89: 0.2
B90: 93 | C90: Каша молочная геркулесовая с маслом | D90: 200/5 | E90: 5.39 | F90: 6.38 | G90: 27.13 | H90: 187 | I90: 0.18 | J90: 0.46 | K90: 0.05 | L90: 0.8 | M90: 123.6 | N90: 188.3 | O90: 60.7 | P90: 1.5
B91: 462/21 | C91: Какао с молоком | D91: 200 | E91: 3.28 | F91: 3.55 | G91: 17.15 | H91: 113.67 | I91: 0.032 | J91: 1 | K91: 0.02 | L91: 0.006 | M91: 121.6 | N91: 106.42 | O91: 15.8 | P91: 0.36
B92: 576/21 | C92: Батон | D92: 30 | E92: 2.3 | F92: 0.9 | G92: 15.4 | H92: 78.6 | I92: 0 | J92: 0 | K92: 0 | L92: 0 | M92: 5.7 | N92: 19.5 | O92: 3.9 | P92: 0.3
E93: =SUM(E88:E92) -> 17.37 | F93: =SUM(F88:F92) -> 16.43 | G93: 78.88 | H93: 550.77 | I93: 0.742 | J93: 14.86 | K93: 40.17 | L93: 2.106 | M93: 515.7 | N93: 516.82 | O93: 124.48 | P93: 2.405
C94: 2 Завтрак
B95: 442 | C95: Сок | D95: 200 | E95: 1 | F95: 0.2 | G95: 20.2 | H95: 86 | I95: 0 | J95: 4 | K95: 0 | L95: 0 | M95: 14 | N95: 14 | O95: 8 | P95: 2.8
E96: =SUM(E95) -> 1 | F96: =SUM(F95) -> 0.2 | G96: 20.2 | H96: 86 | I96: 0 | J96: 4 | K96: 0 | L96: 0 | M96: 14 | N96: 14 | O96: 8 | P96: 2.8
C97: Обед
B98: 71 | C98: Помидор свежий порционно | D98: 60 | E98: 0.42 | F98: 0.06 | G98: 1.14 | H98: 6.78 | I98: 0.020 | J98: 2.940 | K98: 0.000 | L98: 0.000 | M98: 10.200 | N98: 18.000 | O98: 8.400 | P98: 0.300
B99: 111 | C99: Суп с макаронными изделиями с мясными фрикадельками | D99: 230/20 | E99: 6.9 | F99: 8.15 | G99: 11.7 | H99: 148.03 | I99: 0 | J99: 0.73 | K99: 0.21 | L99: 0.63 | M99: 21.5 | N99: 64.3 | O99: 14.22 | P99: 1.15
B100: 265 | C100: Плов из говядины | D100: 50/170 | E100: 24.2 | F100: 24.7 | G100: 38.2 | H100: 472.2 | I100: 0.09 | J100: 1.9 | K100: 0.9 | L100: 0 | M100: 20.9 | N100: 211.8 | O100: 54.2 | P100: 3.85
B101: 349 | C101: Компот из смеси сухофруктов | D101: 200 | E101: 0.5 | F101: 0.02 | G101: 19.43 | H101: 79.92 | I101: 0 | J101: 0.03 | K101: 0.75 | L101: 0 | M101: 17.25 | N101: 28.8 | O101: 13.8 | P101: 1.95
B102: 573/21 | C102: Хлеб Пшеничный | D102: 30 | E102: 2.3 | F102: 0.24 | G102: 14.8 | H102: 70.8 | I102: 0 | J102: 0 | K102: 0 | L102: 0 | M102: 5.7 | N102: 19.5 | O102: 3.9 | P102: 0.3
B103: 574/21 | C103: Хлеб Ржаной (ржано-пшеничный) | D103: 30 | E103: 1.98 | F103: 0.36 | G103: 10.02 | H103: 51.3 | I103: 0.06 | J103: 0 | K103: 0 | L103: 0.33 | M103: 10.5 | N103: 48 | O103: 13.5 | P103: 1.2
E104: =SUM(E98:E103) -> 36.30 | F104: =SUM(F98:F103) -> 33.53 | G104: =SUM(G98:G103) -> 95.29 | H104: =SUM(H98:H103) -> 829.03 | I104: 0.27 | J104: 11.41 | K104: 1.86 | L104: 1.12 | M104: 94.65 | N104: 431.7 | O104: 116.62 | P104: 9.4
C105: Итого за день | E105: =E93+E96+E104 -> 54.67 | F105: =F93+F95+F104 -> 50.16 | G105: =G93+G95+G104 -> 194.37 | H105: =H93+H95+H104 -> 1465.8 | I105: 1.112 | J105: 36.01 | K105: 45.93 | L105: 3.656 | M105: 654.72 | N105: 969.25 | O105: 231.02 | P105: 15.22
C106: 6 день
C107: Завтрак
B108: 338 | C108: Плоды и ягоды свежие | D108: 150 | E108: 0.6 | F108: 0.6 | G108: 11.2 | H108: 70.5 | I108: 0.45 | J108: 12 | K108: 0 | L108: 1.3 | M108: 24 | N108: 22 | O108: 15.98 | P108: 0.045
B109: 181/17 | C109: Каша молочная манная вязкая с маслом | D109: 200/5 | E109: 7.23 | F109: 8.35 | G109: 33.44 | H109: 297.82 | I109: 0.04 | J109: 0.9 | K109: 0.05 | L109: 0.8 | M109: 182 | N109: 122.9 | O109: 20.7 | P109: 0.4
B110: 465/21 | C110: Кофейный напиток с молоком | D110: 200 | E110: 3 | F110: 3.27 | G110: 18.36 | H110: 114.2 | I110: 0.04 | J110: 1 | K110: 0.02 | L110: 0.03 | M110: 122.9 | N110: 109.9 | O110: 22.05 | P110: 0.03
B111: 227/16 | C111: Яйцо вареное | D111: 1 шт. | E111: 3.08 | F111: 4.6 | G111: 0.28 | H111: 62.84 | I111: 0.05 | J111: 1.73 | K111: 0 | L111: 1.05 | M111: 259.2 | N111: 211.68 | O111: 22.4 | P111: 0.22
B112: 576/21 | C112: Батон | D112: 30 | E112: 2.3 | F112: 0.9 | G112: 15.4 | H112: 78.6 | I112: 0 | J112: 0 | K112: 0 | L112: 0 | M112: 5.7 | N112: 19.5 | O112: 3.9 | P112: 0.3
E113: =SUM(E108:E112) -> 16.21 | F113: =SUM(F108:F112) -> 17.72 | G113: =SUM(G108:G112) -> 78.68 | H113: =SUM(H108:H112) -> 623.96 | I113: 0.22 | J113: 93.93 | K113: 0.17 | L113: 1.88 | M113: 620.95 | N113: 519.98 | O113: 88.65 | P113: 1.4
C114: 2 Завтрак
B115: 442 | C115: Сок | D115: 200 | E115: 1 | F115: 0.2 | G115: 20.2 | H115: 86 | I115: 0 | J115: 4 | K115: 0 | L115: 0 | M115: 14 | N115: 14 | O115: 8 | P115: 2.8
E116: =SUM(E115) -> 1 | F116: =SUM(F115) -> 0.2 | G116: 20.2 | H116: 86 | I116: 0 | J116: 4 | K116: 0 | L116: 0 | M116: 14 | N116: 14 | O116: 8 | P116: 2.8
C117: Обед
B118: 45/17 | C118: Салат из белокочанной капусты | D118: 60 | E118: 0.78 | F118: 1.94 | G118: 3.87 | H118: 36 | I118: 0.013 | J118: 6.25 | K118: - | L118: 0.06 | M118: 16.98 | N118: 46.98 | O118: 6.05 | P118: 0.27
B119: 139/04 | C119: Суп картофельный с бобовыми (горох) на мясокостном бульоне (говяжий) | D119: 250 | E119: 13.28 | F119: 8.57 | G119: 19.58 | H119: 172.61 | I119: 0.06 | J119: 11.5 | K119: 0.19 | L119: 0.49 | M119: 105.05 | N119: 182.12 | O119: 27.61 | P119: 1.12
B120: 279 | C120: Тефтели говяжьи (2 вариант) | D120: 50/50 | E120: 12.54 | F120: 19.04 | G120: 9.93 | H120: 261.21 | I120: 0.01 | J120: 0.11 | K120: 3.33 | L120: 0.11 | M120: 186.25 | N120: 6.2 | O120: 25.18 | P120: 1.15
B121: 312/17 | C121: Пюре картофельное с маслом | D121: 180/5 | E121: 3.71 | F121: 9.94 | G121: 26.4 | H121: 206.4 | I121: 0.2 | J121: 9.53 | K121: 0.1 | L121: 0.4 | M121: 57.37 | N121: 101.7 | O121: 9.6 | P121: 1.4
B122: 342/16 | C122: Компот из свежих плодов (яблок) | D122: 200 | E122: 0.2 | F122: 0.2 | G122: 18.4 | H122: 76.3 | I122: 0 | J122: 1.6 | K122: 0 | L122: 0.3 | M122: 13 | N122: 4 | O122: 4.4 | P122: 0.8
B123: 573/21 | C123: Хлеб Пшеничный | D123: 30 | E123: 2.3 | F123: 0.24 | G123: 14.8 | H123: 70.8 | I123: 0 | J123: 0 | K123: 0 | L123: 0 | M123: 5.7 | N123: 19.5 | O123: 3.9 | P123: 0.3
B124: 574/21 | C124: Хлеб Ржаной (ржано-пшеничный) | D124: 30 | E124: 1.98 | F124: 0.36 | G124: 10.02 | H124: 51.3 | I124: 0.06 | J124: 0 | K124: 0 | L124: 0.33 | M124: 10.5 | N124: 48 | O124: 13.5 | P124: 1.2
E125: =SUM(E118:E124) -> 34.79 | F125: =SUM(F118:F124) -> 40.29 | G125: =SUM(G118:G124) -> 103 | H125: =SUM(H118:H124) -> 874.62 | I125: 0.44 | J125: 30.34 | K125: 3.62 | L125: 2.93 | M125: 414.47 | N125: 389.12 | O125: 118.39 | P125: 7.22
C126: итого за день | E126: =E113+E115+E125 -> 52.00 | F126: =F113+F115+F125 -> 58.21 | G126: =G113+G115+G125 -> 201.88 | H126: =H113+H115+H125 -> 1584.58 | I126: 0.66 | J126: 128.27 | K126: 3.79 | L126: 4.81 | M126: 1049.42 | N126: 923.1 | O126: 215.04 | P126: 11.42
C127: 7 день
C128: Завтрак
B129: 15/17 | C129: Сыр порциями | D129: 15 | E129: 4.42 | F129: 4.16 | G129: 0 | H129: 55.11 | I129: 0 | J129: 0 | K129: 0.12 | L129: 0.07 | M129: 165 | N129: 99 | O129: 9.08 | P129: 0.12
B130: 175/17 | C130: Каша молочная Дружба с маслом | D130: 200/5 | E130: 6.2 | F130: 9 | G130: 26.8 | H130: 211.8 | I130: 0.1 | J130: 0.8 | K130: 0 | L130: 0.4 | M130: 159.4 | N130: 143.8 | O130: 29.1 | P130: 0.6
B131: 377/17 | C131: Чай с лимоном | D131: 200/10/7 | E131: 0.27 | F131: 0.06 | G131: 15.23 | H131: 63 | I131: 0.003 | J131: 2.8 | K131: 0 | L131: 0.014 | M131: 3.25 | N131: 1.54 | O131: 0.84 | P131: 0.087
B132: 576/21 | C132: Батон | D132: 30 | E132: 2.3 | F132: 0.9 | G132: 15.4 | H132: 78.6 | I132: 0 | J132: 0 | K132: 0 | L132: 0 | M132: 5.7 | N132: 19.5 | O132: 3.9 | P132: 0.3
E133: =SUM(E129:E132) -> 13.19 | F133: =SUM(F129:F132) -> 14.12 | G133: =SUM(G129:G132) -> 57.43 | H133: =SUM(H129:H132) -> 408.51 | I133: =SUM(I129:I132) -> 0.103 | J133: 6.4 | K133: 44 | L133: 0.414 | M133: 546.05 | N133: 439.34 | O133: 71.04 | P133: 1.687
C134: 2 Завтрак
B135: 442 | C135: Сок | D135: 200 | E135: 1 | F135: 0.2 | G135: 20.2 | H135: 86 | I135: 0 | J135: 4 | K135: 0 | L135: 0 | M135: 14 | N135: 14 | O135: 8 | P135: 2.8
E136: =SUM(E135) -> 1 | F136: =SUM(F135) -> 0.2 | G136: 20.2 | H136: 86 | I136: 0 | J136: 4 | K136: 0 | L136: 0 | M136: 14 | N136: 14 | O136: 8 | P136: 2.8
C137: Обед
B138: 71 | C138: Огурец свежий порционно | D138: 60 | E138: 0.42 | F138: 0.06 | G138: 1.14 | H138: 6.78 | I138: 0.020 | J138: 2.940 | K138: 0.000 | L138: 0.000 | M138: 10.200 | N138: 18.000 | O138: 8.400 | P138: 0.300
B139: 124/04 | C139: Щи из свежей капусты с картофелем на мясокостном бульоне (говяжий) со сметаной | D139: 250/10 | E139: 8.17 | F139: 14.05 | G139: 8.99 | H139: 195.09 | I139: 0.05 | J139: 5.56 | K139: 0.13 | L139: 0.67 | M139: 101.37 | N139: 153.29 | O139: 19.22 | P139: 1.09
B140: 234 | C140: Биточки рыбные с соусом | D140: 75/25 | E140: 12.9 | F140: 4.9 | G140: 9.5 | H140: 134.3 | I140: 0.16 | J140: 7.9 | K140: 0.043 | L140: 0.9 | M140: 23.8 | N140: 127.2 | O140: 49.3 | P140: 0.9
B141: 202/17 | C141: Макаронные изделия отварные с маслом | D141: 180/5 | E141: 8.5 | F141: 5.9 | G141: 54.7 | H141: 305.9 | I141: 0.1 | J141: 0 | K141: 0 | L141: 1.8 | M141: 14.3 | N141: 63.5 | O141: 11.5 | P141: 1.4
B142: 349 | C142: Компот из смеси сухофруктов | D142: 200 | E142: 0.5 | F142: 0.02 | G142: 19.43 | H142: 79.92 | I142: 0 | J142: 0.03 | K142: 0.75 | L142: 0 | M142: 17.25 | N142: 28.8 | O142: 13.8 | P142: 1.95
B143: 573/21 | C143: Хлеб Пшеничный | D143: 30 | E143: 2.3 | F143: 0.24 | G143: 14.8 | H143: 70.8 | I143: 0 | J143: 0 | K143: 0 | L143: 0 | M143: 5.7 | N143: 19.5 | O143: 3.9 | P143: 0.3
B144: 574/21 | C144: Хлеб Ржаной (ржано-пшеничный) | D144: 30 | E144: 1.98 | F144: 0.36 | G144: 10.02 | H144: 51.3 | I144: 0.06 | J144: 0 | K144: 0 | L144: 0.33 | M144: 10.5 | N144: 48 | O144: 13.5 | P144: 1.2
B145: 338 | C145: Плоды и ягоды свежие | D145: 150 | E145: 0.6 | F145: 0.6 | G145: 11.2 | H145: 70.5 | I145: 0.45 | J145: 12 | K145: 0 | L145: 1.3 | M145: 24 | N145: 22 | O145: 15.98 | P145: 0.045
E146: =SUM(E138:E145) -> 35.37 | F146: =SUM(F138:F145) -> 26.13 | G146: =SUM(G138:G145) -> 129.78 | H146: =SUM(H138:H145) -> 914.59 | I146: 0.49 | J146: 133.89 | K146: 1.053 | L146: 3.7 | M146: 241.12 | N146: 514.96 | O146: 137.35 | P146: 7.44
C147: итого за день | E147: =E133+E135+E146 -> 49.56 | F147: =F133+F135+F146 -> 40.45 | G147: =G133+G135+G146 -> 207.41 | H147: =H133+H135+H146 -> 1409.1 | I147: 0.673 | J147: 144.29 | K147: 45.053 | L147: 4.114 | M147: 801.17 | N147: 968.3 | O147: 216.39 | P147: 11.927
C148: 8 день
C149: Завтрак
B150: 470/21 | C150: Йогурт 2,5% | D150: 200 | E150: 5.8 | F150: 5 | G150: 8 | H150: 101 | I150: 0.08 | J150: 1.4 | K150: 40.1 | L150: 0 | M150: 240.8 | N150: 180.6 | O150: 28.1 | P150: 0.2
B151: 311/04 | C151: Каша молочная манная (жидкая) с маслом | D151: 200/5 | E151: 6.19 | F151: 6.57 | G151: 32.99 | H151: 215.91 | I151: 0.09 | J151: 2.35 | K151: 1.37 | L151: 0.57 | M151: 135.18 | N151: 122.94 | O151: 20.42 | P151: 0.43
B152: 465/21 | C152: Кофейный напиток с молоком | D152: 200 | E152: 3 | F152: 3.27 | G152: 18.36 | H152: 114.2 | I152: 0.04 | J152: 1 | K152: 0.02 | L152: 0.03 | M152: 122.9 | N152: 109.9 | O152: 22.05 | P152: 0.03
B153: 573/21 | C153: Хлеб Пшеничный | D153: 30 | E153: 2.3 | F153: 0.24 | G153: 14.8 | H153: 70.8 | I153: 0 | J153: 0 | K153: 0 | L153: 0 | M153: 5.7 | N153: 19.5 | O153: 3.9 | P153: 0.3
E154: =SUM(E150:E153) -> 17.29 | F154: 15.08 | G154: 74.15 | H154: 501.91 | I154: 0.21 | J154: 4.75 | K154: 41.49 | L154: 0.6 | M154: 504.58 | N154: 432.94 | O154: 74.47 | P154: 0.96
C155: 2 Завтрак
B156: 442 | C156: Сок | D156: 200 | E156: 1 | F156: 0.2 | G156: 20.2 | H156: 86 | I156: 0 | J156: 4 | K156: 0 | L156: 0 | M156: 14 | N156: 14 | O156: 8 | P156: 2.8
E157: =SUM(E156) -> 1 | F157: =SUM(F156) -> 0.2 | G157: 20.2 | H157: 86 | I157: 0 | J157: 4 | K157: 0 | L157: 0 | M157: 14 | N157: 14 | O157: 8 | P157: 2.8
C158: Обед
B159: 25 | C159: Салат Степной | D159: 60 | E159: 1.29 | F159: 4.96 | G159: 7.12 | H159: 78.30 | I159: 0.100 | J159: 10.700 | K159: 0.060 | L159: 0.120 | M159: 24.240 | N159: 9.420 | O159: 14.040 | P159: 0.610
B160: 101 | C160: Суп картофельный с гречневой крупой на кб | D160: 250 | E160: 6.37 | F160: 13.71 | G160: 10.52 | H160: 225.95 | I160: 0.03 | J160: 6.91 | K160: 1.14 | L160: 0.31 | M160: 14.16 | N160: 110.15 | O160: 43.05 | P160: 1.03
B161: 321 | C161: Капуста тушеная | D161: 180 | E161: 3.72 | F161: 11.93 | G161: 16.8 | H161: 135.24 | I161: 0.2 | J161: 30.89 | K161: 0.1 | L161: 0.4 | M161: 99.84 | N161: 101.7 | O161: 37.18 | P161: 1.45
B162: 347/21 | C162: Котлеты Школьные с соусом | D162: 75/25 | E162: 15.3 | F162: 11 | G162: 13.3 | H162: 213 | I162: 0.14 | J162: 0 | K162: 30 | L162: 1.4 | M162: 50 | N162: 136 | O162: 21 | P162: 2.07
B163: 494/21 | C163: Компот из изюма | D163: 200 | E163: 0.3 | F163: 0.01 | G163: 17.5 | H163: 72 | I163: 0 | J163: 0.1 | K163: 0 | L163: 0.1 | M163: 16.4 | N163: 10.7 | O163: 4.3 | P163: 0.9
B164: 573/21 | C164: Хлеб Пшеничный | D164: 30 | E164: 2.3 | F164: 0.24 | G164: 14.8 | H164: 70.8 | I164: 0 | J164: 0 | K164: 0 | L164: 0 | M164: 5.7 | N164: 19.5 | O164: 3.9 | P164: 0.3
B165: 574/21 | C165: Хлеб Ржаной (ржано-пшеничный) | D165: 30 | E165: 1.98 | F165: 0.36 | G165: 10.02 | H165: 51.3 | I165: 0.06 | J165: 0 | K165: 0 | L165: 0.33 | M165: 10.5 | N165: 48 | O165: 13.5 | P165: 1.2
B166: 338 | C166: Плоды и ягоды свежие | D166: 150 | E166: 0.6 | F166: 0.6 | G166: 11.2 | H166: 70.5 | I166: 0.45 | J166: 12 | K166: 0 | L166: 1.3 | M166: 24 | N166: 22 | O166: 15.98 | P166: 0.045
C167: Шоколад молочный | D167: 90 | E167: 9.8 | F167: 34.7 | G167: 50.4 | H167: 554 | I167: 8 | J167: 0 | K167: 22 | L167: 0.8 | M167: 352 | N167: 309 | O167: 68 | P167: 1.5
E168: =SUM(E159:E167) -> 41.66 | F168: =SUM(F159:F167) -> 77.51 | G168: =SUM(G159:G167) -> 151.66 | H168: =SUM(H159:H167) -> 1471.09 | I168: =SUM(I159:I167) -> 8.980 | J168: 71.135 | K168: 1.361 | L168: 3.82 | M168: 231.54 | N168: 468.1 | O168: 179.18 | P168: 6.87
C169: Итого за день | E169: =E154+E156+E168 -> 59.95 | F169: =F154+F156+F168 -> 92.79 | G169: =G154+G156+G168 -> 246.01 | H169: =H154+H156+H168 -> 2059.00 | I169: 1.373 | J169: 81.185 | K169: 46.751 | L169: 4.42 | M169: 754.12 | N169: 925.24 | O169: 264.55 | P169: 11.35
C170: 9 день
B171: 203 | C171: Запеканка рисовая с творогом с повидлом | D171: 180/20 | E171: 18.76 | F171: 19.24 | G171: 36.45 | H171: 365 | I171: 0.08 | J171: 0.11 | K171: 0 | L171: 2.1 | M171: 102 | N171: 209.4 | O171: 43.8 | P171: 1.68
B172: 576/21 | C172: Батон | D172: 30 | E172: 2.3 | F172: 0.9 | G172: 15.4 | H172: 78.6 | I172: 0 | J172: 0 | K172: 0 | L172: 0 | M172: 5.7 | N172: 19.5 | O172: 3.9 | P172: 0.3
B173: 457/21 | C173: Чай с сахаром | D173: 200 | E173: 0.2 | F173: 0.1 | G173: 9.3 | H173: 38 | I173: 0 | J173: 0 | K173: 0 | L173: 0 | M173: 5.1 | N173: 7.7 | O173: 4.2 | P173: 0.82
E174: 15.09 | F174: 19.23 | G174: 87.15 | H174: =SUM(H171:H173) -> 481.6 | I174: 0.08 | J174: 0.11 | K174: 0.2 | L174: 2.3 | M174: 113.95 | N174: 239.05 | O174: 52.1 | P174: 2.82
C175: 2 Завтрак
B176: 442 | C176: Сок | D176: 200 | E176: 1 | F176: 0.2 | G176: 20.2 | H176: 86 | I176: 0 | J176: 4 | K176: 0 | L176: 0 | M176: 14 | N176: 14 | O176: 8 | P176: 2.8
E177: =SUM(E176) -> 1 | F177: =SUM(F176) -> 0.2 | G177: 20.2 | H177: 86 | I177: 0 | J177: 4 | K177: 0 | L177: 0 | M177: 14 | N177: 14 | O177: 8 | P177: 2.8
C178: Обед
B179: 2/21 | C179: Салат витаминный | D179: 60 | E179: 0.72 | F179: 3.06 | G179: 3.30 | H179: 43.80 | I179: 0.020 | J179: 7.800 | K179: 0.000 | L179: 1.440 | M179: 20.400 | N179: 18.000 | O179: 10.800 | P179: 0.560
B180: 148/04 | C180: Суп-лапша домашняя с цыплятами отварными | D180: 250/25 | E180: 7.88 | F180: 12.08 | G180: 10.91 | H180: 183.79 | I180: 0.09 | J180: 3.23 | K180: 0.7 | L180: 0.28 | M180: 105.94 | N180: 130.51 | O180: 10.04 | P180: 1.09
B181: 279 | C181: Тефтели говяжьи (2 вариант) | D181: 50/50 | E181: 12.54 | F181: 19.04 | G181: 9.93 | H181: 261.21 | I181: 0.01 | J181: 0.11 | K181: 3.33 | L181: 0.11 | M181: 186.25 | N181: 6.2 | O181: 25.18 | P181: 1.15
B182: 171/17 | C182: Каша гречневая рассыпчатая с маслом | D182: 180/5 | E182: 10.1 | F182: 7.5 | G182: 45.9 | H182: 291 | I182: 0.3 | J182: 0 | K182: 0 | L182: 5.6 | M182: 27 | N182: 224.2 | O182: 150.7 | P182: 5.3
B183: 349 | C183: Компот из смеси сухофруктов | D183: 200 | E183: 0.5 | F183: 0.02 | G183: 19.43 | H183: 79.92 | I183: 0 | J183: 0.03 | K183: 0.75 | L183: 0 | M183: 17.25 | N183: 28.8 | O183: 13.8 | P183: 1.95
B184: 573/21 | C184: Хлеб Пшеничный | D184: 30 | E184: 2.3 | F184: 0.24 | G184: 14.8 | H184: 70.8 | I184: 0 | J184: 0 | K184: 0 | L184: 0 | M184: 5.7 | N184: 19.5 | O184: 3.9 | P184: 0.3
B185: 574/21 | C185: Хлеб Ржаной (ржано-пшеничный) | D185: 30 | E185: 1.98 | F185: 0.36 | G185: 10.02 | H185: 51.3 | I185: 0.06 | J185: 0 | K185: 0 | L185: 0.33 | M185: 10.5 | N185: 48 | O185: 13.5 | P185: 1.2
B186: 338 | C186: Плоды и ягоды свежие | D186: 150 | E186: 0.6 | F186: 0.6 | G186: 11.2 | H186: 70.5 | I186: 0.45 | J186: 12 | K186: 0 | L186: 1.3 | M186: 24 | N186: 22 | O186: 15.98 | P186: 0.045
E187: =SUM(E179:E186) -> 36.62 | F187: =SUM(F179:F186) -> 42.90 | G187: =SUM(G179:G186) -> 125.49 | H187: =SUM(H179:H186) -> 1052.32 | I187: 0.585 | J187: 52.61 | K187: 4.78 | L187: 8.632 | M187: 223.212 | N187: 640.183 | O187: 253.55 | P187: 1.2
C188: Итого за день | E188: =E174+E176+E187 -> 52.71 | F188: =F174+F176+F187 -> 62.33 | G188: =G174+G176+G187 -> 232.84 | H188: =H174+H176+H187 -> 1619.92 | I188: 0.665 | J188: 56.72 | K188: 4.98 | L188: 10.932 | M188: 351.162 | N188: 893.233 | O188: 313.65 | P188: 6.82
C189: 10 день
B190: 338 | C190: Плоды и ягоды свежие | D190: 150 | E190: 0.6 | F190: 0.6 | G190: 11.2 | H190: 70.5 | I190: 0.45 | J190: 12 | K190: 0 | L190: 1.3 | M190: 24 | N190: 22 | O190: 15.98 | P190: 0.045
B191: 174/17 | C191: Каша рисовая молочная вязкая с маслом | D191: 200/5 | E191: 5.7 | F191: 8.01 | G191: 38.4 | H191: 249.6 | I191: 0.05 | J191: 1.3 | K191: 0.05 | L191: 0.91 | M191: 122.9 | N191: 150 | O191: 34.9 | P191: 1.3
B192: 15/17 | C192: Сыр порциями | D192: 15 | E192: 4.42 | F192: 4.16 | G192: 0 | H192: 55.11 | I192: 0 | J192: 0 | K192: 0.12 | L192: 0.07 | M192: 165 | N192: 99 | O192: 9.08 | P192: 0.12
B193: 377/17 | C193: Чай с лимоном | D193: 200/10/7 | E193: 0.27 | F193: 0.06 | G193: 15.23 | H193: 63 | I193: 0.003 | J193: 2.8 | K193: 0 | L193: 0.014 | M193: 3.25 | N193: 1.54 | O193: 0.84 | P193: 0.087
B194: 576/21 | C194: Батон | D194: 30 | E194: 2.3 | F194: 0.9 | G194: 15.4 | H194: 78.6 | I194: 0 | J194: 0 | K194: 0 | L194: 0 | M194: 5.7 | N194: 19.5 | O194: 3.9 | P194: 0.3
E195: =SUM(E190:E194) -> 13.29 | F195: =SUM(F190:F194) -> 13.73 | G195: =SUM(G190:G194) -> 80.23 | H195: =SUM(H190:H194) -> 516.81 | I195: 0.653 | J195: 20.1 | K195: 0.17 | L195: 2.724 | M195: 328.85 | N195: 299.37 | O195: 70.02 | P195: 1.867
C196: 2 Завтрак
B197: 442 | C197: Сок | D197: 200 | E197: 1 | F197: 0.2 | G197: 20.2 | H197: 86 | I197: 0 | J197: 4 | K197: 0 | L197: 0 | M197: 14 | N197: 14 | O197: 8 | P197: 2.8
E198: =SUM(E197) -> 1 | F198: =SUM(F197) -> 0.2 | G198: 20.2 | H198: 86 | I198: 0 | J198: 4 | K198: 0 | L198: 0 | M198: 14 | N198: 14 | O198: 8 | P198: 2.8
C199: Обед
B200: 71 | C200: Огурец свежий порционно | D200: 60 | E200: 0.42 | F200: 0.06 | G200: 1.14 | H200: 6.78 | I200: 0.020 | J200: 2.940 | K200: 0.000 | L200: 0.000 | M200: 10.200 | N200: 18.000 | O200: 8.400 | P200: 0.300
B201: 82/17 | C201: Борщ с мясными фрикадельками со сметаной | D201: 230/20/5 | E201: 7.53 | F201: 9.72 | G201: 14 | H201: 174.6 | I201: 0.1 | J201: 10.56 | K201: 0.31 | L201: 2.1 | M201: 47.9 | N201: 101.6 | O201: 34.3 | P201: 2.1
B202: 202/17 | C202: Макаронные изделия отварные с маслом | D202: 180/5 | E202: 8.5 | F202: 5.9 | G202: 54.7 | H202: 305.9 | I202: 0.1 | J202: 0 | K202: 0 | L202: 1.8 | M202: 14.3 | N202: 63.5 | O202: 11.5 | P202: 1.4
... 167 more rows
